Workbook

Sheet MonsterGroup
B1: Id | C1: Contents | D1: Rewardgroup | E1: Info | F1: Skill | G1: OpenEvent | H1: EndEvent | I1: Scene
B2: int | C2: mut,int#int,2 | D2: mut,int#int,1 | E2: string | F2: string | G2: int | H2: int | I2: mut,int#int,1
B3: 2 | C3: 2 | D3: 2 | E3: 0 | F3: 3 | G3: 3 | H3: 3 | I3: 3
B4: 怪物组id | C4: 怪物id#怪物id|怪物id#怪物id （多波次|间隔） | D4: 奖励组#奖励组 | E4: 备注 | F4: 异妖技能 | G4: 进场剧情 eventid | H4: 结束剧情 eventid | I4: 场景图
A5: 默认值 | B5: 0 | C5: null | D5: null | G5: 0 | H5: 0 | I5: 0
A6: 正确性校对
A7: 校对值
B8: 1 | C8: 50001 | E8: 公会boss1 | I8: 6501
B9: 2 | C9: 50002 | E9: 公会boss2 | I9: 6502
B10: 3 | C10: 50003 | E10: 公会boss3 | I10: 6503
B11: 4 | C11: 50004 | E11: 公会boss4 | I11: 6504
B12: 5 | C12: 50005 | E12: 公会boss5 | I12: 6505
B13: 10001 | C13: 1000001#1000002#1000003#1000004#1000005 | E13: 序幕专用怪 | I13: 6501
B14: 100001 | C14: 10001 | E14: 第一战 | I14: 6501
B15: 100002 | C15: 10002#10003#10004 | E15: 木桩组 | I15: 6501
B16: 100003 | C16: 10005#10006#10007 | E16: 木桩组 | I16: 6501
B17: 100004 | C17: 10008 | E17: 站桩测伤害 | I17: 6501
B18: 100005 | C18: 10009#10010#10011 | E18: 木桩组 | I18: 6501
B19: 100006 | C19: 10012#10013#10014 | E19: 木桩组 | I19: 6501
B20: 100007 | C20: 10015#10016#10017#10018#10019 | E20: 职业木桩组 | I20: 6501
B21: 10101 | C21: 10101 | D21: 40001#40001 | E21: 副本1-灵智妖兽 | I21: 6501
B22: 10102 | C22: 10102 | D22: 40001 | E22: 副本1-受伤妖兽 | I22: 6501
B23: 10103 | C23: 10104#10103#10105 | D23: 3001 | E23: 副本1-妖兽 | I23: 6501
B24: 10104 | C24: 20111#20112#20113#20114#20115 | D24: 3001 | E24: 副本1-杂兵 | I24: 6501
B25: 10105 | C25: 20121#20122#20123#20124#20125 | D25: 3001 | E25: 副本1-精英杂兵 | I25: 6501
B26: 10201 | C26: 10201 | D26: 40002 | E26: 副本2-大山 | I26: 6501
B27: 10202 | C27: 10202 | D27: 3006 | E27: 副本2-卫兵 | I27: 6501
B28: 10203 | C28: 10202#10203|10204 | D28: 3006 | E28: 副本2-卫兵头领 | I28: 6501#6501
B29: 10204 | C29: 10205 | D29: 40002#40002#55001 | E29: 副本2-强迷魂兽 | I29: 6501
B30: 10205 | C30: 10206 | D30: 40002#40002#55001 | E30: 副本2-弱迷魂兽 | I30: 6501
B31: 10206 | C31: 20211#20212#20213#20214#20215 | D31: 3006#55003 | E31: 副本2-地图怪 | I31: 6501
B32: 10207 | C32: 10208 | D32: 40002#40002#55001 | E32: 副本2-中迷魂兽 | I32: 6501
B33: 10208 | C33: 10209 | D33: 40002#40002#40002 | E33: 副本2-探索点怨灵 | I33: 6501
B34: 10209 | C34: 10210 | D34: 40002#40002#40002#55003#55003 | E34: 副本2-噬魂妖兽 | I34: 6501
B35: 10210 | C35: 20221#20222#20223#20224#20225 | D35: 40002#55003#55003 | E35: 副本2-精英妖兽 | I35: 6501
B36: 10301 | C36: 10301 | D36: 40003 | E36: 副本3-男逃难者 | I36: 6501
B37: 10302 | C37: 10302 | D37: 3011 | E37: 副本3-马贼 | I37: 6501
B38: 10303 | C38: 10303 | D38: 3011 | E38: 副本3-妖兽 | I38: 6501
B39: 10304 | C39: 10304 | D39: 40003#52 | E39: 副本3-马贼头目 | I39: 6501
B40: 10305 | C40: 10305#10306#10307 | D40: 40003 | E40: 副本3-机关人 | I40: 6501#6501#6501
B41: 10306 | C41: 20311#20312#20313#20314#20315 | D41: 3011 | E41: 副本3-杂兵 | I41: 6501
B42: 10307 | C42: 10308 | D42: 40003#40003#52 | E42: 副本3-强化马贼头领 | I42: 6501
B43: 10308 | C43: 10309 | D43: 40003#40003 | E43: 副本3-怨灵 | I43: 6501
B44: 10309 | C44: 20321#20322#20323#20324#20325 | D44: 40003 | E44: 副本3-精英妖兽 | I44: 6501
B45: 10401 | C45: 10401 | D45: 40004 | E45: 副本4-妖兽 | I45: 6501
B46: 10402 | C46: 10402 | D46: 40004 | E46: 副本4-骷髅 | I46: 6501
B47: 10403 | C47: 10403 | D47: 40004 | E47: 副本4-妖兽2 | I47: 6501
B48: 10404 | C48: 20411#20412#20413#20414#20415 | D48: 3018 | E48: 副本4-杂兵 | I48: 6501
B49: 10405 | C49: 10404 | D49: 3018 | E49: 副本4-木精灵 | I49: 6501
B50: 10406 | C50: 10405 | D50: 40004 | E50: 副本4-机关人 | I50: 6501
B51: 10407 | C51: 20421#20422#20423#20424#20425 | D51: 40004 | E51: 副本4-精英怪 | I51: 6501
B52: 10501 | C52: 20511#20512#20513#20514#20515 | D52: 3020 | E52: 副本5-杂兵 | I52: 6501
B53: 10502 | C53: 10501 | D53: 40005#55024 | E53: 副本5-狐熊 | I53: 6501
B54: 10503 | C54: 10502 | D54: 3020 | E54: 副本5-机关人 | I54: 6501
B55: 10504 | C55: 20521#20522#20523#20524#20525 | D55: 3020 | E55: 副本5-精英怪 | I55: 6501
B56: 10505 | C56: 20514#20514#20514#20514#20514 | D56: 40005#55023 | E56: 副本5-野兽群 | I56: 6501
B57: 10506 | C57: 10503 | D57: 3020 | E57: 副本5-火焰 | I57: 6501
B58: 10507 | C58: 10503 | D58: 3020 | E58: 副本5-白云 | I58: 6501
B59: 10508 | C59: 10503 | D59: 3020 | E59: 副本5-黄土 | I59: 6501
B60: 10601 | C60: 10601 | D60: 3026 | E60: 副本6普通妖兽 | I60: 6501
B61: 10602 | C61: 10602 | D61: 40006#54 | E61: 副本6灵智妖兽 | I61: 6501
B62: 10603 | C62: 20611#20612#20613#20614#20615 | D62: 3028 | E62: 副本6-杂兵 | I62: 6501
B63: 10604 | C63: 20621#20622#20623#20624#20625 | D63: 3028 | E63: 副本6-精英杂兵 | I63: 6501
B64: 10605 | C64: 10603#10604#10605 | D64: 3028 | E64: 副本6-拦路杂兵 | I64: 6501
B65: 10701 | C65: 10701 | D65: 3031 | E65: 副本7-地痞 | I65: 6501
B66: 10702 | C66: 10701#10702#10703|10701#10702#10703|10701#10702#10703 | D66: 3031 | E66: 副本7-地痞 | I66: 6501#6501#6501
B67: 10703 | C67: 10704 | D67: 3031 | E67: 副本7-地痞头领 | I67: 6501
B68: 10704 | C68: 20711#20712#20713#20714#20715 | D68: 40007#55007 | E68: 副本7-杂兵头领 | I68: 6501
B69: 10705 | C69: 10705 | D69: 3031#55025 | E69: 副本7-幻草妖弱 | I69: 6501
B70: 10706 | C70: 10706 | D70: 40007#55026 | E70: 副本7-幻草妖中 | I70: 6501
B71: 10707 | C71: 10707 | D71: 40007#40007#55027 | E71: 副本7-幻草妖强 | I71: 6501
B72: 10708 | C72: 10708 | D72: 40007 | E72: 副本7-地痞小头领 | I72: 6501
B73: 10709 | C73: 20721#20722#20723#20724#20725 | D73: 40007 | E73: 副本7-杂兵 | I73: 6501
B74: 10710 | C74: 10709 | D74: 40007#55032 | E74: 副本7-打手 | I74: 6501
B75: 10711 | C75: 10710 | D75: 40007#55#55007#55033 | E75: 副本7-大长老 | I75: 6501
B76: 10712 | C76: 10709 | D76: 40007 | E76: 副本7-大长老前打手 | I76: 6501
B77: 10801 | C77: 10801 | D77: 40008 | E77: 副本8-信徒 | I77: 6501
B78: 10802 | C78: 10802 | D78: 40008#55 | E78: 副本8-暴走的信徒 | I78: 6501
B79: 10803 | C79: 10803 | D79: 40008 | E79: 副本8-守护阵眼信徒 | I79: 6501
B80: 10804 | C80: 10804 | D80: 3034 | E80: 副本8-居民 | I80: 6501
B81: 10805 | C81: 10805 | D81: 40008 | E81: 副本8伪装的信徒 | I81: 6501
B82: 10806 | C82: 20811#20812#20813#20814#20815 | D82: 3034 | E82: 副本8-杂兵 | I82: 6501
B83: 10807 | C83: 20821#20822#20823#20824#20825 | D83: 3034 | E83: 副本8-精英杂兵 | I83: 6501
B84: 10901 | C84: 10902#10901#10903 | D84: 3038 | E84: 副本9-妖兽 | I84: 6501
B85: 10902 | C85: 10904 | D85: 40009#56 | E85: 副本9-灵智妖兽 | I85: 6501
B86: 10903 | C86: 10905 | D86: 40009 | E86: 副本9-罩袍人 | I86: 6501
B87: 10904 | C87: 10906 | D87: 3038 | E87: 副本9-被蛊惑的人 | I87: 6501
B88: 10905 | C88: 10907 | D88: 3038 | E88: 副本9-终亡信徒 | I88: 6501
B89: 10906 | C89: 10908 | D89: 40009#40009 | E89: 副本9-狂暴的信徒 | I89: 6501
B90: 10907 | C90: 20911#20912#20913#20914#20915 | D90: 3038 | E90: 副本9-杂兵 | I90: 6501
B91: 11001 | C91: 11003 | D91: 40010 | E91: 副本10妖兽 | I91: 6501
B92: 11002 | C92: 11005 | D92: 40010#55015 | E92: 副本10小怪妖兽 | I92: 6501
B93: 11003 | C93: 11003#11002#11004|11003#11002#11004|11003#11002#11004 | D93: 3041 | E93: 副本10多波妖兽 | I93: 6501#6501#6501
B94: 11004 | C94: 11001 | D94: 40010 | E94: 副本10平民 | I94: 6501
B95: 11005 | C95: 11006 | D95: 40010#56 | E95: 副本10灵智妖兽 | I95: 6501
B96: 11006 | C96: 11003#11002#11004 | D96: 3041 | E96: 副本10妖兽 | I96: 6501
B97: 11007 | C97: 11003#11002#11004 | D97: 3041 | E97: 副本10妖兽 | I97: 6501
B98: 11008 | C98: 21011#21012#21013#21014#21015 | D98: 3041 | E98: 副本10杂兵 | I98: 6501
B99: 11009 | C99: 21021#21022#21023#21024#21025 | D99: 3041 | E99: 副本10精英杂兵 | I99: 6501
B100: 11010 | C100: 11007#11008 | D100: 40010 | E100: 副本10第一波 | I100: 6501
B101: 11011 | C101: 11009#11007#11008 | D101: 40010#52 | E101: 副本10第二波 | I101: 6501
B102: 11012 | C102: 11011 | D102: 40010#40010#40010 | E102: 副本10第三波 | I102: 6501
B103: 11013 | C103: 11011#11009#11010 | D103: 40010#40010#40010#56 | E103: 副本10第四波 | I103: 6501
B104: 11014 | C104: 11012 | D104: 40010#40010#40010#56 | E104: 副本10第五波 | I104: 6501
B105: 11101 | C105: 11101 | D105: 40011#56#55038#55041 | E105: 副本11妖兽 | I105: 6501
B106: 11102 | C106: 11102 | D106: 40011 | E106: 副本11终亡教徒 | I106: 6501
B107: 11103 | C107: 21111#21112#21113#21114#21115 | D107: 3038#55037 | E107: 副本11-普通怪 | I107: 6501
B108: 11104 | C108: 21121#21122#21123#21124#21125 | D108: 3038#55038 | E108: 副本11-精英怪 | I108: 6501
B109: 11105 | C109: 11103 | D109: 40011#56 | E109: 副本11-妖兽（难） | I109: 6501
B110: 11201 | C110: 11201 | D110: 40012#40012#40012 | E110: 副本12-楚恒幻影 | I110: 6501
B111: 11202 | C111: 11202 | D111: 40012#40012#40012 | E111: 副本12-卫兵头领幻影 | I111: 6501
B112: 11203 | C112: 11203 | D112: 40012#40012#40012 | E112: 副本12-巨龟幻影 | I112: 6501
B113: 11204 | C113: 11204 | D113: 40012#40012#40012 | E113: 副本12-终亡信徒幻影 | I113: 6501
B114: 11205 | C114: 11205 | D114: 40012#40012#40012#58 | E114: 副本12-幻灵幻影 | I114: 6501
B115: 11206 | C115: 11206 | D115: 40012 | E115: 副本12-迷魂兽 | I115: 6501
B116: 11207 | C116: 11207 | D116: 40012 | E116: 副本12-妖兽 | I116: 6501
B117: 11208 | C117: 11208 | D117: 40012 | E117: 副本12-地痞小头领 | I117: 6501
B118: 11209 | C118: 11209 | D118: 40012 | E118: 副本12-护卫长 | I118: 6501
B119: 11210 | C119: 11210 | D119: 40012 | E119: 副本12-终亡信徒 | I119: 6501
B120: 11211 | C120: 11211 | D120: 40012#40012 | E120: 副本12-终亡信徒2 | I120: 6501
B121: 11212 | C121: 11212 | D121: 40012#40012#40012#58 | E121: 副本12-幻灵 | I121: 6501
B122: 11213 | C122: 21211#21212#21213#21214#21215 | D122: 3048 | E122: 副本12=杂兵 | I122: 6501
B123: 11214 | C123: 21221#21222#21223#21224#21225 | D123: 3048 | E123: 副本12-精英 | I123: 6501
B124: 11301 | C124: 11301 | D124: 40013 | E124: 副本13灵智妖兽 | I124: 6501
B125: 11302 | C125: 11302 | D125: 40013#40013#58 | E125: 副本13终亡教徒 | I125: 6501
B126: 11303 | C126: 11303 | D126: 40013#58 | E126: 副本13-传送阵守护妖兽 | I126: 6501
B127: 11304 | C127: 11304 | D127: 40013#40013#40013 | E127: 副本13-无畏之灵 | I127: 6501
B128: 11305 | C128: 11305 | D128: 40013#40013#40013 | E128: 副本13-狂战之灵 | I128: 6501
B129: 11306 | C129: 11306 | D129: 40013#40013#40013 | E129: 副本13-金刚之灵 | I129: 6501
B130: 11307 | C130: 21311#21312#21313#21314#21315 | D130: 3058 | E130: 副本13-杂兵 | I130: 6501
B131: 11308 | C131: 21321#21322#21323#21324#21325 | D131: 3058 | E131: 副本13-精英怪 | I131: 6501
B132: 11401 | C132: 11401 | D132: 40014 | E132: 副本14-暗影 | I132: 6501
B133: 11402 | C133: 21411#21412#21413#21414#21415 | D133: 3068#55011 | E133: 副本14-记忆之灵 | I133: 6501
B134: 11403 | C134: 11405 | D134: 40014 | E134: 副本14-耳目 | I134: 6501
B135: 11404 | C135: 11406 | D135: 40014#40014#55018 | E135: 副本14-口鼻 | I135: 6501
B136: 11405 | C136: 11407#11408 | D136: 3068 | E136: 副本14-生死1 | I136: 6501
B137: 11406 | C137: 11409 | D137: 40014 | E137: 副本14-生死2 | I137: 6501
B138: 11407 | C138: 11409#11407#11408 | D138: 40014#40014 | E138: 副本14-生死3 | I138: 6501
B139: 11408 | C139: 11410 | D139: 40014#40014#59 | E139: 副本14-生死4 | I139: 6501
B140: 11409 | C140: 21421#21422#21423#21424#21425 | D140: 40014#55011#55011 | E140: 副本14-精英记忆之灵 | I140: 6501
B141: 11501 | C141: 11501 | D141: 3073 | E141: 副本15-蒙面人 | I141: 6501
B142: 11502 | C142: 11502#11503#11504|11502#11503#11504|11502#11503#11504 | D142: 3073 | E142: 副本15-多波蒙面人 | I142: 6501#6501#6501
B143: 11503 | C143: 11505 | D143: 40015#40015#40015#59 | E143: 副本15-堂主 | I143: 6501
B144: 11504 | C144: 11506 | D144: 40015#40015#55035 | E144: 副本15-猛虎 | I144: 6501
B145: 11505 | C145: 11507 | D145: 40015#40015#40015#59 | E145: 副本15-江一刀 | I145: 6501
B146: 11506 | C146: 21511#21512#21513#21514#21515 | D146: 3073 | E146: 副本15-杂兵 | I146: 6501
B147: 11507 | C147: 21521#21522#21523#21524#21525 | D147: 3073 | E147: 副本15-精英杂兵 | I147: 6501
B148: 11601 | C148: 11601 | D148: 40016 | E148: 副本16-狼 | I148: 6501
B149: 11602 | C149: 11602 | D149: 40016#40016 | E149: 副本16-蝙蝠 | I149: 6501
B150: 11603 | C150: 11603 | D150: 40016#40016#40016 | E150: 副本16-妖兽怨念 | I150: 6501
B151: 11604 | C151: 11604 | D151: 40016#55057 | E151: 副本16-野兽 | I151: 6501
B152: 11605 | C152: 11605 | D152: 40016#40016#40016#850 | E152: 副本16-人狼 | I152: 6501
B153: 11606 | C153: 21611#21612#21613#21614#21615 | D153: 40016 | E153: 副本16-杂兵 | I153: 6501
B154: 11607 | C154: 21621#21622#21623#21624#21625 | D154: 40016 | E154: 副本16-精英怪 | I154: 6501
B155: 11701 | C155: 11701 | D155: 40017 | E155: 副本17-士兵 | I155: 6501
B156: 11702 | C156: 11702 | D156: 40017 | E156: 副本17-混混 | I156: 6501
B157: 11703 | C157: 11703 | D157: 40017#40017 | E157: 副本17-店主 | I157: 6501
B158: 11704 | C158: 11704 | D158: 40017#40017#40017#850 | E158: 副本17-酒鬼 | I158: 6501
B159: 11705 | C159: 21711#21712#21713#21714#21715 | D159: 40017 | E159: 副本17-杂兵 | I159: 6501
B160: 11706 | C160: 21721#21722#21723#21724#21725 | D160: 40017 | E160: 副本17-精英怪 | I160: 6501
B161: 11801 | C161: 11801 | D161: 40018#40018 | E161: 副本18-混混 | I161: 6501
B162: 11802 | C162: 11802 | D162: 40018#40018 | E162: 副本18-白木 | I162: 6501
B163: 11803 | C163: 11803 | D163: 40018#40018#40018#850 | E163: 副本18-业火堂堂主 | I163: 6501
B164: 11804 | C164: 11804 | D164: 40018#40018 | E164: 副本18-妖兽 | I164: 6501
B165: 11805 | C165: 11805 | D165: 40018#40018#40018#850 | E165: 副本18-业火堂堂主 | I165: 6501
B166: 11806 | C166: 21811#21812#21813#21814#21815 | D166: 40018 | E166: 副本18-杂兵 | I166: 6501
B167: 11807 | C167: 21821#21822#21823#21824#21825 | D167: 40018#1305 | E167: 副本18-精英怪 | I167: 6501
B168: 11901 | C168: 11901 | D168: 40019#850 | E168: 副本19-野兽 | I168: 6501
B169: 11902 | C169: 11902 | D169: 40019 | E169: 副本19-妖兽 | I169: 6501
B170: 11903 | C170: 11903 | D170: 40019#40019 | E170: 副本19-妖兽 | I170: 6501
B171: 11904 | C171: 11904 | D171: 40019#40019 | E171: 副本19-妖兽 | I171: 6501
B172: 11905 | C172: 11905 | D172: 40019#40019#850 | E172: 副本19-灵智妖兽 | I172: 6501
B173: 11906 | C173: 21911#21912#21913#21914#21915 | D173: 40019 | E173: 副本19-杂兵 | I173: 6501
B174: 11907 | C174: 21921#21922#21923#21924#21925 | D174: 40019 | E174: 副本19-精英怪 | I174: 6501
B175: 12001 | C175: 12001 | D175: 40020 | E175: 副本20-护卫 | I175: 6501
B176: 12002 | C176: 12002 | D176: 40020#40020#55062 | E176: 副本20-密会者 | I176: 6501
B177: 12003 | C177: 12003#12004 | D177: 40020 | E177: 副本20-蒙面人 | I177: 6501
B178: 12004 | C178: 12005#12006 | D178: 40020#40020 | E178: 副本20-蒙面人 | I178: 6501
B179: 12005 | C179: 12007#12008 | D179: 40020#40020#40020 | E179: 副本20-蒙面人 | I179: 6501
B180: 12006 | C180: 22011#22012#22013#22014#22015 | D180: 40020 | E180: 副本20-杂兵 | I180: 6501
B181: 12007 | C181: 22021#22022#22023#22024#22025 | D181: 40020#1305 | E181: 副本20-精英怪 | I181: 6501
B182: 12008 | C182: 12009 | D182: 40020#40020#40020#850 | E182: 副本20-密会者2 | I182: 6501
B183: 20101 | C183: 50431#50430#50432 | D183: 3046 | E183: 英雄副本1杂兵 | I183: 6501
B184: 20102 | C184: 50446#50442#50444 | D184: 3046 | E184: 英雄副本1杂兵 | I184: 6501
B185: 20103 | C185: 50461#50451#50453 | D185: 3046#10411 | E185: 英雄副本1杂兵 | I185: 6501
B186: 20104 | C186: 50469#50471#50466#50468 | D186: 3046 | E186: 英雄副本1杂兵 | I186: 6501
B187: 20105 | C187: 50431#50430#50432 | D187: 3046 | E187: 英雄副本1杂兵 | I187: 6501
B188: 20106 | C188: 50446#50442#50444 | D188: 3046#10411 | E188: 英雄副本1杂兵 | I188: 6501
B189: 20107 | C189: 50461#50451#50453 | D189: 3046 | E189: 英雄副本1杂兵 | I189: 6501
B190: 20108 | C190: 50469#50471#50466#50468 | D190: 3046 | E190: 英雄副本1杂兵 | I190: 6501
B191: 20109 | C191: 50491#50490#50492 | D191: 3046#10411 | E191: 英雄副本1商人护卫 | I191: 6501
B192: 20110 | C192: 50509#50508#50510 | D192: 3046#10411 | E192: 英雄副本1强盗 | I192: 6501
B193: 20111 | C193: 50518 | D193: 10110#10414 | E193: 英雄副本1boss | I193: 6501
B194: 20112 | C194: 50398#50397#50399 | D194: 3046#10411 | E194: 英雄副本1地图boss | I194: 6501
B195: 20113 | C195: 50404#50400#50402 | D195: 3046#10411 | E195: 英雄副本1密道boss1 | I195: 6501
B196: 20114 | C196: 50425#50428 | D196: 3046#10411 | E196: 英雄副本1密道boss2 | I196: 6501
B197: 20115 | C197: 50458 | D197: 3046#10411 | E197: 英雄副本1密道boss3 | I197: 6501
B198: 20116 | C198: 50488 | D198: 10110#10414 | E198: 英雄副本1密道boss4 | I198: 6501
B199: 30101 | C199: 30200 | D199: 890 | E199: 精英本1-1通缉怪 | I199: 6501
B200: 30102 | C200: 30300 | D200: 890 | E200: 精英本1-2通缉怪 | I200: 6501
... 5293 more rows

Sheet 关卡怪物设计
C1: 波数
A2: =[1]MonsterGroup!E543 -> 关卡-简单-1章-关卡1 | B2: 51001 | C2: 1 | D2: 10101131 | E2: 10101132 | F2: 10101133 | M2: =D2&IF(E2="",E2,"#"&E2)&IF(F2="",F2,"#"&F2)&IF(G2="",G2,"#"&G2)&IF(H2="",H2,"#"&H2) -> 10101131#10101132#10101133
A3: =[1]MonsterGroup!E544 -> 关卡-简单-1章-关卡2 | B3: 51002 | C3: 1 | D3: 10102131 | E3: 10102132 | F3: 10102133 | M3: =D3&IF(E3="",E3,"#"&E3)&IF(F3="",F3,"#"&F3)&IF(G3="",G3,"#"&G3)&IF(H3="",H3,"#"&H3) -> 10102131#10102132#10102133
A4: =[1]MonsterGroup!E545 -> 关卡-简单-1章-关卡3 | B4: 51003 | C4: 1 | D4: 10103141 | E4: 10103142 | F4: 10103143 | G4: 10103144 | M4: 10103141#10103142#10103143#10103144
A5: =[1]MonsterGroup!E546 -> 关卡-简单-1章-关卡4 | B5: 51004 | C5: 1 | D5: 10104141 | E5: 10104142 | F5: 10104143 | G5: 10104144 | M5: 10104141#10104142#10104143#10104144
A6: =[1]MonsterGroup!E547 -> 关卡-简单-1章-关卡5 | B6: 51005 | C6: 1 | D6: 10105151 | E6: 10105152 | F6: 10105153 | G6: 10105154 | H6: 10105155 | M6: 10105151#10105152#10105153#10105154#10105155
A7: =[1]MonsterGroup!E548 -> 关卡-简单-1章-关卡6 | B7: 51006 | C7: 1 | D7: 10106141 | E7: 10106142 | F7: 10106143 | G7: 10106144 | I7: =IF(I2="","",I2+10000) ->  | M7: 10106141#10106142#10106143#10106144
A8: =[1]MonsterGroup!E549 -> 关卡-简单-1章-关卡7 | B8: 51007 | C8: 1 | D8: 10107141 | E8: 10107142 | F8: 10107143 | G8: 10107144 | H8: =IF(H3="","",H3+5000) ->  | M8: 10107141#10107142#10107143#10107144
A9: =[1]MonsterGroup!E550 -> 关卡-简单-1章-关卡8 | B9: 51008 | C9: 1 | D9: =IF(D4="","",D4+5000) -> 10108141 | E9: 10108142 | F9: 10108143 | G9: 10108144 | M9: 10108141#10108142#10108143#10108144
A10: =[1]MonsterGroup!E551 -> 关卡-简单-1章-关卡9 | B10: 51009 | C10: 1 | D10: 10109141 | E10: 10109142 | F10: 10109143 | G10: 10109144 | M10: 10109141#10109142#10109143#10109144
A11: =[1]MonsterGroup!E552 -> 关卡-简单-1章-关卡10 | B11: 51010 | C11: 1 | D11: 10110151 | E11: 10110152 | F11: 10110153 | G11: 10110154 | H11: 10110155 | M11: 10110151#10110152#10110153#10110154#10110155
A12: =[1]MonsterGroup!E553 -> 关卡-简单-1章-关卡11 | B12: 51011 | C12: 1 | D12: =IF(D11="","",D11+1000) -> 10111151 | E12: =IF(E11="","",E11+1000) -> 10111152 | F12: 10111153 | G12: 10111154 | H12: 10111155 | M12: 10111151#10111152#10111153#10111154#10111155
A13: =[1]MonsterGroup!E554 -> 关卡-简单-1章-关卡12 | B13: 51012 | C13: 1 | D13: =IF(D12="","",D12+1000) -> 10112151 | E13: 10112152 | F13: 10112153 | G13: 10112154 | H13: 10112155 | M13: 10112151#10112152#10112153#10112154#10112155
A14: =[1]MonsterGroup!E555 -> 关卡-简单-1章-关卡13 | B14: 51013 | C14: 1 | D14: 10113151 | E14: 10113152 | F14: 10113153 | G14: 10113154 | H14: 10113155 | M14: 10113151#10113152#10113153#10113154#10113155
A15: =[1]MonsterGroup!E556 -> 关卡-简单-1章-关卡14 | B15: 51014 | C15: 1 | D15: 10114151 | E15: 10114152 | F15: 10114153 | G15: 10114154 | H15: 10114155 | M15: 10114151#10114152#10114153#10114154#10114155
A16: =[1]MonsterGroup!E557 -> 关卡-简单-1章-关卡15 | B16: 51015 | C16: 1 | D16: 10115151 | E16: 10115152 | F16: 10115153 | G16: 10115154 | H16: 10115155 | M16: 10115151#10115152#10115153#10115154#10115155
A17: =[1]MonsterGroup!E558 -> 关卡-简单-1章-关卡16 | B17: 51016 | C17: 1 | D17: 10116151 | E17: 10116152 | F17: 10116153 | G17: 10116154 | H17: 10116155 | M17: 10116151#10116152#10116153#10116154#10116155
A18: =[1]MonsterGroup!E559 -> 关卡-简单-1章-关卡17 | B18: 51017 | C18: 1 | D18: 10117151 | E18: 10117152 | F18: 10117153 | G18: 10117154 | H18: 10117155 | M18: 10117151#10117152#10117153#10117154#10117155
A19: =[1]MonsterGroup!E560 -> 关卡-简单-1章-关卡18 | B19: 51018 | C19: 1 | D19: 10118151 | E19: 10118152 | F19: 10118153 | G19: 10118154 | H19: 10118155 | M19: 10118151#10118152#10118153#10118154#10118155
A20: =[1]MonsterGroup!E561 -> 关卡-简单-1章-关卡19 | B20: 51019 | C20: 1 | D20: 10119151 | E20: 10119152 | F20: 10119153 | G20: 10119154 | H20: 10119155 | M20: 10119151#10119152#10119153#10119154#10119155
A21: =[1]MonsterGroup!E562 -> 关卡-简单-1章-关卡20 | B21: 51020 | C21: 1 | D21: 10120151 | E21: 10120152 | F21: 10120153 | G21: 10120154 | H21: 10120155 | M21: 10120151#10120152#10120153#10120154#10120155
A22: =[1]MonsterGroup!E563 -> 关卡-简单-2章-关卡1 | B22: 51021 | C22: 1 | D22: 10201151 | E22: 10201152 | F22: 10201153 | G22: 10201154 | H22: 10201155 | M22: 10201151#10201152#10201153#10201154#10201155
A23: =[1]MonsterGroup!E564 -> 关卡-简单-2章-关卡2 | B23: 51022 | C23: 1 | D23: =IF(D22="","",D22+1000) -> 10202151 | E23: =IF(E22="","",E22+1000) -> 10202152 | F23: 10202153 | G23: 10202154 | H23: 10202155 | I23: =IF(I18="","",I18+10000) ->  | M23: 10202151#10202152#10202153#10202154#10202155
A24: =[1]MonsterGroup!E565 -> 关卡-简单-2章-关卡3 | B24: 51023 | C24: 1 | D24: =IF(D23="","",D23+1000) -> 10203151 | E24: 10203152 | F24: 10203153 | G24: 10203154 | H24: 10203155 | M24: 10203151#10203152#10203153#10203154#10203155
A25: =[1]MonsterGroup!E566 -> 关卡-简单-2章-关卡4 | B25: 51024 | C25: 1 | D25: 10204151 | E25: 10204152 | F25: 10204153 | G25: 10204154 | H25: 10204155 | M25: 10204151#10204152#10204153#10204154#10204155
A26: =[1]MonsterGroup!E567 -> 关卡-简单-2章-关卡5 | B26: 51025 | C26: 1 | D26: 10205151 | E26: 10205152 | F26: 10205153 | G26: 10205154 | H26: 10205155 | M26: 10205151#10205152#10205153#10205154#10205155
A27: =[1]MonsterGroup!E568 -> 关卡-简单-2章-关卡6 | B27: 51026 | C27: 1 | D27: 10206151 | E27: 10206152 | F27: 10206153 | G27: 10206154 | H27: 10206155 | M27: 10206151#10206152#10206153#10206154#10206155
A28: =[1]MonsterGroup!E569 -> 关卡-简单-2章-关卡7 | B28: 51027 | C28: 1 | D28: 10207151 | E28: 10207152 | F28: 10207153 | G28: 10207154 | H28: 10207155 | M28: 10207151#10207152#10207153#10207154#10207155
A29: =[1]MonsterGroup!E570 -> 关卡-简单-2章-关卡8 | B29: 51028 | C29: 1 | D29: 10208151 | E29: 10208152 | F29: 10208153 | G29: 10208154 | H29: 10208155 | M29: 10208151#10208152#10208153#10208154#10208155
A30: =[1]MonsterGroup!E571 -> 关卡-简单-2章-关卡9 | B30: 51029 | C30: 1 | D30: 10209151 | E30: 10209152 | F30: 10209153 | G30: 10209154 | H30: 10209155 | M30: 10209151#10209152#10209153#10209154#10209155
A31: =[1]MonsterGroup!E572 -> 关卡-简单-2章-关卡10 | B31: 51030 | C31: 1 | D31: 10210151 | E31: 10210152 | F31: 10210153 | G31: 10210154 | H31: 10210155 | M31: 10210151#10210152#10210153#10210154#10210155
A32: =[1]MonsterGroup!E573 -> 关卡-简单-2章-关卡11 | B32: 51031 | C32: 1 | D32: 10211151 | E32: 10211152 | F32: 10211153 | G32: 10211154 | H32: 10211155 | M32: 10211151#10211152#10211153#10211154#10211155
A33: =[1]MonsterGroup!E574 -> 关卡-简单-2章-关卡12 | B33: 51032 | C33: 1 | D33: 10212151 | E33: 10212152 | F33: 10212153 | G33: 10212154 | H33: 10212155 | M33: 10212151#10212152#10212153#10212154#10212155
A34: =[1]MonsterGroup!E575 -> 关卡-简单-2章-关卡13 | B34: 51033 | C34: 1 | D34: 10213151 | E34: 10213152 | F34: 10213153 | G34: 10213154 | H34: 10213155 | M34: 10213151#10213152#10213153#10213154#10213155
A35: =[1]MonsterGroup!E576 -> 关卡-简单-2章-关卡14 | B35: 51034 | C35: 1 | D35: 10214151 | E35: 10214152 | F35: 10214153 | G35: 10214154 | H35: 10214155 | M35: 10214151#10214152#10214153#10214154#10214155
A36: =[1]MonsterGroup!E577 -> 关卡-简单-2章-关卡15 | B36: 51035 | C36: 1 | D36: 10215151 | E36: 10215152 | F36: 10215153 | G36: 10215154 | H36: 10215155 | M36: 10215151#10215152#10215153#10215154#10215155
A37: =[1]MonsterGroup!E578 -> 关卡-简单-2章-关卡16 | B37: 51036 | C37: 1 | D37: 10216151 | E37: 10216152 | F37: 10216153 | G37: 10216154 | H37: 10216155 | M37: 10216151#10216152#10216153#10216154#10216155
A38: =[1]MonsterGroup!E579 -> 关卡-简单-2章-关卡17 | B38: 51037 | C38: 1 | D38: 10217151 | E38: 10217152 | F38: 10217153 | G38: 10217154 | H38: 10217155 | M38: 10217151#10217152#10217153#10217154#10217155
A39: =[1]MonsterGroup!E580 -> 关卡-简单-2章-关卡18 | B39: 51038 | C39: 1 | D39: 10218151 | E39: 10218152 | F39: 10218153 | G39: 10218154 | H39: 10218155 | I39: =IF(I34="","",I34+10000) ->  | M39: 10218151#10218152#10218153#10218154#10218155
A40: =[1]MonsterGroup!E581 -> 关卡-简单-2章-关卡19 | B40: 51039 | C40: 1 | D40: =IF(D39="","",D39+1000) -> 10219151 | E40: 10219152 | F40: 10219153 | G40: 10219154 | H40: 10219155 | M40: 10219151#10219152#10219153#10219154#10219155
A41: =[1]MonsterGroup!E582 -> 关卡-简单-2章-关卡20 | B41: 51040 | C41: 1 | D41: 10220151 | E41: 10220152 | F41: 10220153 | G41: 10220154 | H41: 10220155 | M41: 10220151#10220152#10220153#10220154#10220155
A42: =[1]MonsterGroup!E583 -> 关卡-简单-3章-关卡1 | B42: 51041 | C42: 1 | D42: =IF(D22="","",D22+100000) -> 10301151 | E42: 10301152 | F42: 10301153 | G42: 10301154 | H42: 10301155 | M42: 10301151#10301152#10301153#10301154#10301155
A43: =[1]MonsterGroup!E584 -> 关卡-简单-3章-关卡2 | B43: 51042 | C43: 1 | D43: 10302151 | E43: 10302152 | F43: 10302153 | G43: 10302154 | H43: 10302155 | M43: 10302151#10302152#10302153#10302154#10302155
A44: =[1]MonsterGroup!E585 -> 关卡-简单-3章-关卡3 | B44: 51043 | C44: 1 | D44: 10303151 | E44: 10303152 | F44: 10303153 | G44: 10303154 | H44: 10303155 | M44: 10303151#10303152#10303153#10303154#10303155
A45: =[1]MonsterGroup!E586 -> 关卡-简单-3章-关卡4 | B45: 51044 | C45: 1 | D45: 10304151 | E45: 10304152 | F45: 10304153 | G45: 10304154 | H45: 10304155 | M45: 10304151#10304152#10304153#10304154#10304155
A46: =[1]MonsterGroup!E587 -> 关卡-简单-3章-关卡5 | B46: 51045 | C46: 1 | D46: 10305151 | E46: 10305152 | F46: 10305153 | G46: 10305154 | H46: 10305155 | M46: 10305151#10305152#10305153#10305154#10305155
A47: =[1]MonsterGroup!E588 -> 关卡-简单-3章-关卡6 | B47: 51046 | C47: 1 | D47: 10306151 | E47: 10306152 | F47: 10306153 | G47: 10306154 | H47: 10306155 | M47: 10306151#10306152#10306153#10306154#10306155
A48: =[1]MonsterGroup!E589 -> 关卡-简单-3章-关卡7 | B48: 51047 | C48: 1 | D48: 10307151 | E48: 10307152 | F48: 10307153 | G48: 10307154 | H48: 10307155 | M48: 10307151#10307152#10307153#10307154#10307155
A49: =[1]MonsterGroup!E590 -> 关卡-简单-3章-关卡8 | B49: 51048 | C49: 1 | D49: 10308151 | E49: 10308152 | F49: 10308153 | G49: 10308154 | H49: 10308155 | M49: 10308151#10308152#10308153#10308154#10308155
A50: =[1]MonsterGroup!E591 -> 关卡-简单-3章-关卡9 | B50: 51049 | C50: 1 | D50: 10309151 | E50: 10309152 | F50: 10309153 | G50: 10309154 | H50: 10309155 | M50: 10309151#10309152#10309153#10309154#10309155
A51: =[1]MonsterGroup!E592 -> 关卡-简单-3章-关卡10 | B51: 51050 | C51: 1 | D51: 10310151 | M51: 10310151
A52: =[1]MonsterGroup!E593 -> 关卡-简单-3章-关卡11 | B52: 51051 | C52: 1 | D52: 10311151 | E52: 10311152 | F52: 10311153 | G52: 10311154 | H52: 10311155 | M52: 10311151#10311152#10311153#10311154#10311155
A53: =[1]MonsterGroup!E594 -> 关卡-简单-3章-关卡12 | B53: 51052 | C53: 1 | D53: 10312151 | E53: 10312152 | F53: 10312153 | G53: 10312154 | H53: 10312155 | M53: 10312151#10312152#10312153#10312154#10312155
A54: =[1]MonsterGroup!E595 -> 关卡-简单-3章-关卡13 | B54: 51053 | C54: 1 | D54: 10313151 | E54: 10313152 | F54: 10313153 | G54: 10313154 | H54: 10313155 | M54: 10313151#10313152#10313153#10313154#10313155
A55: =[1]MonsterGroup!E596 -> 关卡-简单-3章-关卡14 | B55: 51054 | C55: 1 | D55: 10314151 | E55: 10314152 | F55: 10314153 | G55: 10314154 | H55: 10314155 | I55: =IF(I50="","",I50+10000) ->  | M55: 10314151#10314152#10314153#10314154#10314155
A56: =[1]MonsterGroup!E597 -> 关卡-简单-3章-关卡15 | B56: 51055 | C56: 1 | D56: 10315151 | E56: 10315152 | F56: 10315153 | G56: 10315154 | H56: 10315155 | M56: 10315151#10315152#10315153#10315154#10315155
A57: =[1]MonsterGroup!E598 -> 关卡-简单-3章-关卡16 | B57: 51056 | C57: 1 | D57: 10316151 | E57: 10316152 | F57: 10316153 | G57: 10316154 | H57: 10316155 | M57: 10316151#10316152#10316153#10316154#10316155
A58: =[1]MonsterGroup!E599 -> 关卡-简单-3章-关卡17 | B58: 51057 | C58: 1 | D58: =IF(D38="","",D38+100000) -> 10317151 | E58: 10317152 | F58: 10317153 | G58: 10317154 | H58: 10317155 | M58: 10317151#10317152#10317153#10317154#10317155
A59: =[1]MonsterGroup!E600 -> 关卡-简单-3章-关卡18 | B59: 51058 | C59: 1 | D59: 10318151 | E59: 10318152 | F59: 10318153 | G59: 10318154 | H59: 10318155 | M59: 10318151#10318152#10318153#10318154#10318155
A60: =[1]MonsterGroup!E601 -> 关卡-简单-3章-关卡19 | B60: 51059 | C60: 1 | D60: 10319151 | E60: 10319152 | F60: 10319153 | G60: 10319154 | H60: 10319155 | M60: 10319151#10319152#10319153#10319154#10319155
A61: =[1]MonsterGroup!E602 -> 关卡-简单-3章-关卡20 | B61: 51060 | C61: 1 | D61: 10320151 | M61: 10320151
A62: =[1]MonsterGroup!E603 -> 关卡-简单-4章-关卡1 | B62: 51061 | C62: 1 | D62: 10401151 | E62: 10401152 | F62: 10401153 | G62: 10401154 | H62: 10401155 | M62: 10401151#10401152#10401153#10401154#10401155
A63: =[1]MonsterGroup!E604 -> 关卡-简单-4章-关卡2 | B63: 51062 | C63: 1 | D63: 10402151 | E63: 10402152 | F63: 10402153 | G63: 10402154 | H63: 10402155 | M63: 10402151#10402152#10402153#10402154#10402155
A64: =[1]MonsterGroup!E605 -> 关卡-简单-4章-关卡3 | B64: 51063 | C64: 1 | D64: 10403151 | E64: 10403152 | F64: 10403153 | G64: 10403154 | H64: 10403155 | M64: 10403151#10403152#10403153#10403154#10403155
A65: =[1]MonsterGroup!E606 -> 关卡-简单-4章-关卡4 | B65: 51064 | C65: 1 | D65: 10404151 | E65: 10404152 | F65: 10404153 | G65: 10404154 | H65: 10404155 | M65: 10404151#10404152#10404153#10404154#10404155
A66: =[1]MonsterGroup!E607 -> 关卡-简单-4章-关卡5 | B66: 51065 | C66: 1 | D66: 10405151 | E66: 10405152 | F66: 10405153 | G66: 10405154 | H66: 10405155 | M66: 10405151#10405152#10405153#10405154#10405155
A67: =[1]MonsterGroup!E608 -> 关卡-简单-4章-关卡6 | B67: 51066 | C67: 1 | D67: 10406151 | E67: 10406152 | F67: 10406153 | G67: 10406154 | H67: 10406155 | M67: =D67&IF(E67="",E67,"#"&E67)&IF(F67="",F67,"#"&F67)&IF(G67="",G67,"#"&G67)&IF(H67="",H67,"#"&H67) -> 10406151#10406152#10406153#10406154#10406155
A68: =[1]MonsterGroup!E609 -> 关卡-简单-4章-关卡7 | B68: 51067 | C68: 1 | D68: 10407151 | E68: 10407152 | F68: 10407153 | G68: 10407154 | H68: 10407155 | M68: 10407151#10407152#10407153#10407154#10407155
A69: =[1]MonsterGroup!E610 -> 关卡-简单-4章-关卡8 | B69: 51068 | C69: 1 | D69: 10408151 | E69: 10408152 | F69: 10408153 | G69: 10408154 | H69: 10408155 | M69: 10408151#10408152#10408153#10408154#10408155
A70: =[1]MonsterGroup!E611 -> 关卡-简单-4章-关卡9 | B70: 51069 | C70: 1 | D70: 10409151 | E70: 10409152 | F70: 10409153 | G70: 10409154 | H70: 10409155 | M70: 10409151#10409152#10409153#10409154#10409155
A71: =[1]MonsterGroup!E612 -> 关卡-简单-4章-关卡10 | B71: 51070 | C71: 1 | D71: 10410151 | I71: =IF(I66="","",I66+10000) ->  | M71: 10410151
A72: =[1]MonsterGroup!E613 -> 关卡-简单-4章-关卡11 | B72: 51071 | C72: 1 | D72: 10411151 | E72: 10411152 | F72: 10411153 | G72: 10411154 | H72: 10411155 | M72: 10411151#10411152#10411153#10411154#10411155
A73: =[1]MonsterGroup!E614 -> 关卡-简单-4章-关卡12 | B73: 51072 | C73: 1 | D73: 10412151 | E73: 10412152 | F73: 10412153 | G73: 10412154 | H73: 10412155 | M73: 10412151#10412152#10412153#10412154#10412155
A74: =[1]MonsterGroup!E615 -> 关卡-简单-4章-关卡13 | B74: 51073 | C74: 1 | D74: =IF(D54="","",D54+100000) -> 10413151 | E74: 10413152 | F74: 10413153 | G74: 10413154 | H74: 10413155 | M74: 10413151#10413152#10413153#10413154#10413155
A75: =[1]MonsterGroup!E616 -> 关卡-简单-4章-关卡14 | B75: 51074 | C75: 1 | D75: 10414151 | E75: 10414152 | F75: 10414153 | G75: 10414154 | H75: 10414155 | M75: 10414151#10414152#10414153#10414154#10414155
A76: =[1]MonsterGroup!E617 -> 关卡-简单-4章-关卡15 | B76: 51075 | C76: 1 | D76: 10415151 | E76: 10415152 | F76: 10415153 | G76: 10415154 | H76: 10415155 | M76: 10415151#10415152#10415153#10415154#10415155
A77: =[1]MonsterGroup!E618 -> 关卡-简单-4章-关卡16 | B77: 51076 | C77: 1 | D77: 10416151 | E77: 10416152 | F77: 10416153 | G77: 10416154 | H77: 10416155 | M77: 10416151#10416152#10416153#10416154#10416155
A78: =[1]MonsterGroup!E619 -> 关卡-简单-4章-关卡17 | B78: 51077 | C78: 1 | D78: 10417151 | E78: 10417152 | F78: 10417153 | G78: 10417154 | H78: 10417155 | M78: 10417151#10417152#10417153#10417154#10417155
A79: =[1]MonsterGroup!E620 -> 关卡-简单-4章-关卡18 | B79: 51078 | C79: 1 | D79: 10418151 | E79: 10418152 | F79: 10418153 | G79: 10418154 | H79: 10418155 | M79: 10418151#10418152#10418153#10418154#10418155
A80: =[1]MonsterGroup!E621 -> 关卡-简单-4章-关卡19 | B80: 51079 | C80: 1 | D80: 10419151 | E80: 10419152 | F80: 10419153 | G80: 10419154 | H80: 10419155 | M80: 10419151#10419152#10419153#10419154#10419155
A81: =[1]MonsterGroup!E622 -> 关卡-简单-4章-关卡20 | B81: 51080 | C81: 1 | D81: 10420151 | M81: 10420151
A82: =[1]MonsterGroup!E623 -> 关卡-简单-5章-关卡1 | B82: 51081 | C82: 1 | D82: 10501151 | E82: 10501152 | F82: 10501153 | G82: 10501154 | H82: 10501155 | M82: 10501151#10501152#10501153#10501154#10501155
A83: =[1]MonsterGroup!E624 -> 关卡-简单-5章-关卡2 | B83: 51082 | C83: 1 | D83: 10502151 | E83: 10502152 | F83: 10502153 | G83: 10502154 | H83: 10502155 | M83: 10502151#10502152#10502153#10502154#10502155
A84: =[1]MonsterGroup!E625 -> 关卡-简单-5章-关卡3 | B84: 51083 | C84: 1 | D84: 10503151 | E84: 10503152 | F84: 10503153 | G84: 10503154 | H84: 10503155 | M84: 10503151#10503152#10503153#10503154#10503155
A85: =[1]MonsterGroup!E626 -> 关卡-简单-5章-关卡4 | B85: 51084 | C85: 1 | D85: 10504151 | E85: 10504152 | F85: 10504153 | G85: 10504154 | H85: 10504155 | M85: 10504151#10504152#10504153#10504154#10504155
A86: =[1]MonsterGroup!E627 -> 关卡-简单-5章-关卡5 | B86: 51085 | C86: 1 | D86: 10505151 | E86: 10505152 | F86: 10505153 | G86: 10505154 | H86: 10505155 | M86: 10505151#10505152#10505153#10505154#10505155
A87: =[1]MonsterGroup!E628 -> 关卡-简单-5章-关卡6 | B87: 51086 | C87: 1 | D87: 10506151 | E87: 10506152 | F87: 10506153 | G87: 10506154 | H87: 10506155 | I87: =IF(I82="","",I82+10000) ->  | M87: 10506151#10506152#10506153#10506154#10506155
A88: =[1]MonsterGroup!E629 -> 关卡-简单-5章-关卡7 | B88: 51087 | C88: 1 | D88: 10507151 | E88: 10507152 | F88: 10507153 | G88: 10507154 | H88: 10507155 | M88: 10507151#10507152#10507153#10507154#10507155
A89: =[1]MonsterGroup!E630 -> 关卡-简单-5章-关卡8 | B89: 51088 | C89: 1 | D89: 10508151 | E89: 10508152 | F89: 10508153 | G89: 10508154 | H89: 10508155 | M89: 10508151#10508152#10508153#10508154#10508155
A90: =[1]MonsterGroup!E631 -> 关卡-简单-5章-关卡9 | B90: 51089 | C90: 1 | D90: =IF(D70="","",D70+100000) -> 10509151 | E90: 10509152 | F90: 10509153 | G90: 10509154 | H90: 10509155 | M90: 10509151#10509152#10509153#10509154#10509155
A91: =[1]MonsterGroup!E632 -> 关卡-简单-5章-关卡10 | B91: 51090 | C91: 1 | D91: 10510151 | M91: 10510151
A92: =[1]MonsterGroup!E633 -> 关卡-简单-5章-关卡11 | B92: 51091 | C92: 1 | D92: 10511151 | E92: 10511152 | F92: 10511153 | G92: 10511154 | H92: 10511155 | M92: 10511151#10511152#10511153#10511154#10511155
A93: =[1]MonsterGroup!E634 -> 关卡-简单-5章-关卡12 | B93: 51092 | C93: 1 | D93: 10512151 | E93: 10512152 | F93: 10512153 | G93: 10512154 | H93: 10512155 | M93: 10512151#10512152#10512153#10512154#10512155
A94: =[1]MonsterGroup!E635 -> 关卡-简单-5章-关卡13 | B94: 51093 | C94: 1 | D94: 10513151 | E94: 10513152 | F94: 10513153 | G94: 10513154 | H94: 10513155 | M94: 10513151#10513152#10513153#10513154#10513155
A95: =[1]MonsterGroup!E636 -> 关卡-简单-5章-关卡14 | B95: 51094 | C95: 1 | D95: 10514151 | E95: 10514152 | F95: 10514153 | G95: 10514154 | H95: 10514155 | M95: 10514151#10514152#10514153#10514154#10514155
A96: =[1]MonsterGroup!E637 -> 关卡-简单-5章-关卡15 | B96: 51095 | C96: 1 | D96: 10515151 | E96: 10515152 | F96: 10515153 | G96: 10515154 | H96: 10515155 | M96: 10515151#10515152#10515153#10515154#10515155
A97: =[1]MonsterGroup!E638 -> 关卡-简单-5章-关卡16 | B97: 51096 | C97: 1 | D97: 10516151 | E97: 10516152 | F97: 10516153 | G97: 10516154 | H97: 10516155 | M97: 10516151#10516152#10516153#10516154#10516155
A98: =[1]MonsterGroup!E639 -> 关卡-简单-5章-关卡17 | B98: 51097 | C98: 1 | D98: 10517151 | E98: 10517152 | F98: 10517153 | G98: 10517154 | H98: 10517155 | M98: 10517151#10517152#10517153#10517154#10517155
A99: =[1]MonsterGroup!E640 -> 关卡-简单-5章-关卡18 | B99: 51098 | C99: 1 | D99: 10518151 | E99: 10518152 | F99: 10518153 | G99: 10518154 | H99: 10518155 | M99: 10518151#10518152#10518153#10518154#10518155
A100: =[1]MonsterGroup!E641 -> 关卡-简单-5章-关卡19 | B100: 51099 | C100: 1 | D100: 10519151 | E100: 10519152 | F100: 10519153 | G100: 10519154 | H100: 10519155 | M100: 10519151#10519152#10519153#10519154#10519155
A101: =[1]MonsterGroup!E642 -> 关卡-简单-5章-关卡20 | B101: 51100 | C101: 1 | D101: 10520151 | M101: 10520151
A102: =[1]MonsterGroup!E643 -> 关卡-简单-6章-关卡1 | B102: 51101 | C102: 1 | D102: 10601151 | E102: 10601152 | F102: 10601153 | G102: 10601154 | H102: 10601155 | M102: 10601151#10601152#10601153#10601154#10601155
A103: =[1]MonsterGroup!E644 -> 关卡-简单-6章-关卡2 | B103: 51102 | C103: 1 | D103: 10602151 | E103: 10602152 | F103: 10602153 | G103: 10602154 | H103: 10602155 | I103: =IF(I98="","",I98+10000) ->  | M103: 10602151#10602152#10602153#10602154#10602155
A104: =[1]MonsterGroup!E645 -> 关卡-简单-6章-关卡3 | B104: 51103 | C104: 1 | D104: 10603151 | E104: 10603152 | F104: 10603153 | G104: 10603154 | H104: 10603155 | M104: 10603151#10603152#10603153#10603154#10603155
A105: =[1]MonsterGroup!E646 -> 关卡-简单-6章-关卡4 | B105: 51104 | C105: 1 | D105: 10604151 | E105: 10604152 | F105: 10604153 | G105: 10604154 | H105: 10604155 | M105: 10604151#10604152#10604153#10604154#10604155
A106: =[1]MonsterGroup!E647 -> 关卡-简单-6章-关卡5 | B106: 51105 | C106: 1 | D106: =IF(D86="","",D86+100000) -> 10605151 | E106: 10605152 | F106: 10605153 | G106: 10605154 | H106: 10605155 | M106: 10605151#10605152#10605153#10605154#10605155
A107: =[1]MonsterGroup!E648 -> 关卡-简单-6章-关卡6 | B107: 51106 | C107: 1 | D107: 10606151 | E107: 10606152 | F107: 10606153 | G107: 10606154 | H107: 10606155 | M107: 10606151#10606152#10606153#10606154#10606155
A108: =[1]MonsterGroup!E649 -> 关卡-简单-6章-关卡7 | B108: 51107 | C108: 1 | D108: 10607151 | E108: 10607152 | F108: 10607153 | G108: 10607154 | H108: 10607155 | M108: 10607151#10607152#10607153#10607154#10607155
A109: =[1]MonsterGroup!E650 -> 关卡-简单-6章-关卡8 | B109: 51108 | C109: 1 | D109: 10608151 | E109: 10608152 | F109: 10608153 | G109: 10608154 | H109: 10608155 | M109: 10608151#10608152#10608153#10608154#10608155
A110: =[1]MonsterGroup!E651 -> 关卡-简单-6章-关卡9 | B110: 51109 | C110: 1 | D110: 10609151 | E110: 10609152 | F110: 10609153 | G110: 10609154 | H110: 10609155 | M110: 10609151#10609152#10609153#10609154#10609155
A111: =[1]MonsterGroup!E652 -> 关卡-简单-6章-关卡10 | B111: 51110 | C111: 1 | D111: 10610151 | M111: 10610151
A112: =[1]MonsterGroup!E653 -> 关卡-简单-6章-关卡11 | B112: 51111 | C112: 1 | D112: 10611151 | E112: 10611152 | F112: 10611153 | G112: 10611154 | H112: 10611155 | M112: 10611151#10611152#10611153#10611154#10611155
A113: =[1]MonsterGroup!E654 -> 关卡-简单-6章-关卡12 | B113: 51112 | C113: 1 | D113: 10612151 | E113: 10612152 | F113: 10612153 | G113: 10612154 | H113: 10612155 | M113: 10612151#10612152#10612153#10612154#10612155
A114: =[1]MonsterGroup!E655 -> 关卡-简单-6章-关卡13 | B114: 51113 | C114: 1 | D114: 10613151 | E114: 10613152 | F114: 10613153 | G114: 10613154 | H114: 10613155 | M114: 10613151#10613152#10613153#10613154#10613155
A115: =[1]MonsterGroup!E656 -> 关卡-简单-6章-关卡14 | B115: 51114 | C115: 1 | D115: 10614151 | E115: 10614152 | F115: 10614153 | G115: 10614154 | H115: 10614155 | M115: 10614151#10614152#10614153#10614154#10614155
A116: =[1]MonsterGroup!E657 -> 关卡-简单-6章-关卡15 | B116: 51115 | C116: 1 | D116: 10615151 | E116: 10615152 | F116: 10615153 | G116: 10615154 | H116: 10615155 | M116: 10615151#10615152#10615153#10615154#10615155
A117: =[1]MonsterGroup!E658 -> 关卡-简单-6章-关卡16 | B117: 51116 | C117: 1 | D117: 10616151 | E117: 10616152 | F117: 10616153 | G117: 10616154 | H117: 10616155 | M117: 10616151#10616152#10616153#10616154#10616155
A118: =[1]MonsterGroup!E659 -> 关卡-简单-6章-关卡17 | B118: 51117 | C118: 1 | D118: 10617151 | E118: 10617152 | F118: 10617153 | G118: 10617154 | H118: 10617155 | M118: 10617151#10617152#10617153#10617154#10617155
A119: =[1]MonsterGroup!E660 -> 关卡-简单-6章-关卡18 | B119: 51118 | C119: 1 | D119: 10618151 | E119: 10618152 | F119: 10618153 | G119: 10618154 | H119: 10618155 | I119: =IF(I114="","",I114+10000) ->  | M119: 10618151#10618152#10618153#10618154#10618155
A120: =[1]MonsterGroup!E661 -> 关卡-简单-6章-关卡19 | B120: 51119 | C120: 1 | D120: 10619151 | E120: 10619152 | F120: 10619153 | G120: 10619154 | H120: 10619155 | M120: 10619151#10619152#10619153#10619154#10619155
A121: =[1]MonsterGroup!E662 -> 关卡-简单-6章-关卡20 | B121: 51120 | C121: 1 | D121: 10620151 | M121: 10620151
A122: =[1]MonsterGroup!E663 -> 关卡-简单-7章-关卡1 | B122: 51121 | C122: 1 | D122: =IF(D102="","",D102+100000) -> 10701151 | E122: 10701152 | F122: 10701153 | G122: 10701154 | H122: 10701155 | M122: 10701151#10701152#10701153#10701154#10701155
A123: =[1]MonsterGroup!E664 -> 关卡-简单-7章-关卡2 | B123: 51122 | C123: 1 | D123: 10702151 | E123: 10702152 | F123: 10702153 | G123: 10702154 | H123: 10702155 | M123: 10702151#10702152#10702153#10702154#10702155
A124: =[1]MonsterGroup!E665 -> 关卡-简单-7章-关卡3 | B124: 51123 | C124: 1 | D124: 10703151 | E124: 10703152 | F124: 10703153 | G124: 10703154 | H124: 10703155 | M124: 10703151#10703152#10703153#10703154#10703155
A125: =[1]MonsterGroup!E666 -> 关卡-简单-7章-关卡4 | B125: 51124 | C125: 1 | D125: 10704151 | E125: 10704152 | F125: 10704153 | G125: 10704154 | H125: 10704155 | M125: 10704151#10704152#10704153#10704154#10704155
A126: =[1]MonsterGroup!E667 -> 关卡-简单-7章-关卡5 | B126: 51125 | C126: 1 | D126: 10705151 | E126: 10705152 | F126: 10705153 | G126: 10705154 | H126: 10705155 | M126: 10705151#10705152#10705153#10705154#10705155
A127: =[1]MonsterGroup!E668 -> 关卡-简单-7章-关卡6 | B127: 51126 | C127: 1 | D127: 10706151 | E127: 10706152 | F127: 10706153 | G127: 10706154 | H127: 10706155 | M127: 10706151#10706152#10706153#10706154#10706155
A128: =[1]MonsterGroup!E669 -> 关卡-简单-7章-关卡7 | B128: 51127 | C128: 1 | D128: 10707151 | E128: 10707152 | F128: 10707153 | G128: 10707154 | H128: 10707155 | M128: 10707151#10707152#10707153#10707154#10707155
A129: =[1]MonsterGroup!E670 -> 关卡-简单-7章-关卡8 | B129: 51128 | C129: 1 | D129: 10708151 | E129: 10708152 | F129: 10708153 | G129: 10708154 | H129: 10708155 | M129: 10708151#10708152#10708153#10708154#10708155
A130: =[1]MonsterGroup!E671 -> 关卡-简单-7章-关卡9 | B130: 51129 | C130: 1 | D130: 10709151 | E130: 10709152 | F130: 10709153 | G130: 10709154 | H130: 10709155 | M130: 10709151#10709152#10709153#10709154#10709155
A131: =[1]MonsterGroup!E672 -> 关卡-简单-7章-关卡10 | B131: 51130 | C131: 1 | D131: 10710151 | M131: =D131&IF(E131="",E131,"#"&E131)&IF(F131="",F131,"#"&F131)&IF(G131="",G131,"#"&G131)&IF(H131="",H131,"#"&H131) -> 10710151
A132: =[1]MonsterGroup!E673 -> 关卡-简单-7章-关卡11 | B132: 51131 | C132: 1 | D132: 10711151 | E132: 10711152 | F132: 10711153 | G132: 10711154 | H132: 10711155 | M132: 10711151#10711152#10711153#10711154#10711155
A133: =[1]MonsterGroup!E674 -> 关卡-简单-7章-关卡12 | B133: 51132 | C133: 1 | D133: 10712151 | E133: 10712152 | F133: 10712153 | G133: 10712154 | H133: 10712155 | M133: 10712151#10712152#10712153#10712154#10712155
A134: =[1]MonsterGroup!E675 -> 关卡-简单-7章-关卡13 | B134: 51133 | C134: 1 | D134: 10713151 | E134: 10713152 | F134: 10713153 | G134: 10713154 | H134: 10713155 | M134: 10713151#10713152#10713153#10713154#10713155
A135: =[1]MonsterGroup!E676 -> 关卡-简单-7章-关卡14 | B135: 51134 | C135: 1 | D135: 10714151 | E135: 10714152 | F135: 10714153 | G135: 10714154 | H135: 10714155 | I135: =IF(I130="","",I130+10000) ->  | M135: 10714151#10714152#10714153#10714154#10714155
A136: =[1]MonsterGroup!E677 -> 关卡-简单-7章-关卡15 | B136: 51135 | C136: 1 | D136: 10715151 | E136: 10715152 | F136: 10715153 | G136: 10715154 | H136: 10715155 | M136: 10715151#10715152#10715153#10715154#10715155
A137: =[1]MonsterGroup!E678 -> 关卡-简单-7章-关卡16 | B137: 51136 | C137: 1 | D137: 10716151 | E137: 10716152 | F137: 10716153 | G137: 10716154 | H137: 10716155 | M137: 10716151#10716152#10716153#10716154#10716155
A138: =[1]MonsterGroup!E679 -> 关卡-简单-7章-关卡17 | B138: 51137 | C138: 1 | D138: =IF(D118="","",D118+100000) -> 10717151 | E138: 10717152 | F138: 10717153 | G138: 10717154 | H138: 10717155 | M138: 10717151#10717152#10717153#10717154#10717155
A139: =[1]MonsterGroup!E680 -> 关卡-简单-7章-关卡18 | B139: 51138 | C139: 1 | D139: 10718151 | E139: 10718152 | F139: 10718153 | G139: 10718154 | H139: 10718155 | M139: 10718151#10718152#10718153#10718154#10718155
A140: =[1]MonsterGroup!E681 -> 关卡-简单-7章-关卡19 | B140: 51139 | C140: 1 | D140: 10719151 | E140: 10719152 | F140: 10719153 | G140: 10719154 | H140: 10719155 | M140: 10719151#10719152#10719153#10719154#10719155
A141: =[1]MonsterGroup!E682 -> 关卡-简单-7章-关卡20 | B141: 51140 | C141: 1 | D141: 10720151 | M141: 10720151
A142: =[1]MonsterGroup!E683 -> 关卡-简单-8章-关卡1 | B142: 51141 | C142: 1 | D142: 10801151 | E142: 10801152 | F142: 10801153 | G142: 10801154 | H142: 10801155 | M142: 10801151#10801152#10801153#10801154#10801155
A143: =[1]MonsterGroup!E684 -> 关卡-简单-8章-关卡2 | B143: 51142 | C143: 1 | D143: 10802151 | E143: 10802152 | F143: 10802153 | G143: 10802154 | H143: 10802155 | M143: 10802151#10802152#10802153#10802154#10802155
A144: =[1]MonsterGroup!E685 -> 关卡-简单-8章-关卡3 | B144: 51143 | C144: 1 | D144: 10803151 | E144: 10803152 | F144: 10803153 | G144: 10803154 | H144: 10803155 | M144: 10803151#10803152#10803153#10803154#10803155
A145: =[1]MonsterGroup!E686 -> 关卡-简单-8章-关卡4 | B145: 51144 | C145: 1 | D145: 10804151 | E145: 10804152 | F145: 10804153 | G145: 10804154 | H145: 10804155 | M145: 10804151#10804152#10804153#10804154#10804155
A146: =[1]MonsterGroup!E687 -> 关卡-简单-8章-关卡5 | B146: 51145 | C146: 1 | D146: 10805151 | E146: 10805152 | F146: 10805153 | G146: 10805154 | H146: 10805155 | M146: 10805151#10805152#10805153#10805154#10805155
A147: =[1]MonsterGroup!E688 -> 关卡-简单-8章-关卡6 | B147: 51146 | C147: 1 | D147: 10806151 | E147: 10806152 | F147: 10806153 | G147: 10806154 | H147: 10806155 | M147: 10806151#10806152#10806153#10806154#10806155
A148: =[1]MonsterGroup!E689 -> 关卡-简单-8章-关卡7 | B148: 51147 | C148: 1 | D148: 10807151 | E148: 10807152 | F148: 10807153 | G148: 10807154 | H148: 10807155 | M148: 10807151#10807152#10807153#10807154#10807155
A149: =[1]MonsterGroup!E690 -> 关卡-简单-8章-关卡8 | B149: 51148 | C149: 1 | D149: 10808151 | E149: 10808152 | F149: 10808153 | G149: 10808154 | H149: 10808155 | M149: 10808151#10808152#10808153#10808154#10808155
A150: =[1]MonsterGroup!E691 -> 关卡-简单-8章-关卡9 | B150: 51149 | C150: 1 | D150: 10809151 | E150: 10809152 | F150: 10809153 | G150: 10809154 | H150: 10809155 | M150: 10809151#10809152#10809153#10809154#10809155
A151: =[1]MonsterGroup!E692 -> 关卡-简单-8章-关卡10 | B151: 51150 | C151: 1 | D151: 10810151 | I151: =IF(I146="","",I146+10000) ->  | M151: 10810151
A152: =[1]MonsterGroup!E693 -> 关卡-简单-8章-关卡11 | B152: 51151 | C152: 1 | D152: 10811151 | E152: 10811152 | F152: 10811153 | G152: 10811154 | H152: 10811155 | M152: 10811151#10811152#10811153#10811154#10811155
A153: =[1]MonsterGroup!E694 -> 关卡-简单-8章-关卡12 | B153: 51152 | C153: 1 | D153: 10812151 | E153: 10812152 | F153: 10812153 | G153: 10812154 | H153: 10812155 | M153: 10812151#10812152#10812153#10812154#10812155
A154: =[1]MonsterGroup!E695 -> 关卡-简单-8章-关卡13 | B154: 51153 | C154: 1 | D154: =IF(D134="","",D134+100000) -> 10813151 | E154: 10813152 | F154: 10813153 | G154: 10813154 | H154: 10813155 | M154: 10813151#10813152#10813153#10813154#10813155
A155: =[1]MonsterGroup!E696 -> 关卡-简单-8章-关卡14 | B155: 51154 | C155: 1 | D155: 10814151 | E155: 10814152 | F155: 10814153 | G155: 10814154 | H155: 10814155 | M155: 10814151#10814152#10814153#10814154#10814155
A156: =[1]MonsterGroup!E697 -> 关卡-简单-8章-关卡15 | B156: 51155 | C156: 1 | D156: 10815151 | E156: 10815152 | F156: 10815153 | G156: 10815154 | H156: 10815155 | M156: 10815151#10815152#10815153#10815154#10815155
A157: =[1]MonsterGroup!E698 -> 关卡-简单-8章-关卡16 | B157: 51156 | C157: 1 | D157: 10816151 | E157: 10816152 | F157: 10816153 | G157: 10816154 | H157: 10816155 | M157: 10816151#10816152#10816153#10816154#10816155
A158: =[1]MonsterGroup!E699 -> 关卡-简单-8章-关卡17 | B158: 51157 | C158: 1 | D158: 10817151 | E158: 10817152 | F158: 10817153 | G158: 10817154 | H158: 10817155 | M158: 10817151#10817152#10817153#10817154#10817155
A159: =[1]MonsterGroup!E700 -> 关卡-简单-8章-关卡18 | B159: 51158 | C159: 1 | D159: 10818151 | E159: 10818152 | F159: 10818153 | G159: 10818154 | H159: 10818155 | M159: 10818151#10818152#10818153#10818154#10818155
A160: =[1]MonsterGroup!E701 -> 关卡-简单-8章-关卡19 | B160: 51159 | C160: 1 | D160: 10819151 | E160: 10819152 | F160: 10819153 | G160: 10819154 | H160: 10819155 | M160: 10819151#10819152#10819153#10819154#10819155
A161: =[1]MonsterGroup!E702 -> 关卡-简单-8章-关卡20 | B161: 51160 | C161: 1 | D161: 10820151 | M161: 10820151
A162: =[1]MonsterGroup!E703 -> 关卡-简单-9章-关卡1 | B162: 51161 | C162: 1 | D162: 10901151 | E162: 10901152 | F162: 10901153 | G162: 10901154 | H162: 10901155 | M162: 10901151#10901152#10901153#10901154#10901155
A163: =[1]MonsterGroup!E704 -> 关卡-简单-9章-关卡2 | B163: 51162 | C163: 1 | D163: 10902151 | E163: 10902152 | F163: 10902153 | G163: 10902154 | H163: 10902155 | M163: 10902151#10902152#10902153#10902154#10902155
A164: =[1]MonsterGroup!E705 -> 关卡-简单-9章-关卡3 | B164: 51163 | C164: 1 | D164: 10903151 | E164: 10903152 | F164: 10903153 | G164: 10903154 | H164: 10903155 | M164: 10903151#10903152#10903153#10903154#10903155
A165: =[1]MonsterGroup!E706 -> 关卡-简单-9章-关卡4 | B165: 51164 | C165: 1 | D165: 10904151 | E165: 10904152 | F165: 10904153 | G165: 10904154 | H165: 10904155 | M165: 10904151#10904152#10904153#10904154#10904155
A166: =[1]MonsterGroup!E707 -> 关卡-简单-9章-关卡5 | B166: 51165 | C166: 1 | D166: 10905151 | E166: 10905152 | F166: 10905153 | G166: 10905154 | H166: 10905155 | M166: 10905151#10905152#10905153#10905154#10905155
A167: =[1]MonsterGroup!E708 -> 关卡-简单-9章-关卡6 | B167: 51166 | C167: 1 | D167: 10906151 | E167: 10906152 | F167: 10906153 | G167: 10906154 | H167: 10906155 | I167: =IF(I162="","",I162+10000) ->  | M167: 10906151#10906152#10906153#10906154#10906155
A168: =[1]MonsterGroup!E709 -> 关卡-简单-9章-关卡7 | B168: 51167 | C168: 1 | D168: 10907151 | E168: 10907152 | F168: 10907153 | G168: 10907154 | H168: 10907155 | M168: 10907151#10907152#10907153#10907154#10907155
A169: =[1]MonsterGroup!E710 -> 关卡-简单-9章-关卡8 | B169: 51168 | C169: 1 | D169: 10908151 | E169: 10908152 | F169: 10908153 | G169: 10908154 | H169: 10908155 | M169: 10908151#10908152#10908153#10908154#10908155
A170: =[1]MonsterGroup!E711 -> 关卡-简单-9章-关卡9 | B170: 51169 | C170: 1 | D170: =IF(D150="","",D150+100000) -> 10909151 | E170: 10909152 | F170: 10909153 | G170: 10909154 | H170: 10909155 | M170: 10909151#10909152#10909153#10909154#10909155
A171: =[1]MonsterGroup!E712 -> 关卡-简单-9章-关卡10 | B171: 51170 | C171: 1 | D171: 10910151 | M171: 10910151
A172: =[1]MonsterGroup!E713 -> 关卡-简单-9章-关卡11 | B172: 51171 | C172: 1 | D172: 10911151 | E172: 10911152 | F172: 10911153 | G172: 10911154 | H172: 10911155 | M172: 10911151#10911152#10911153#10911154#10911155
A173: =[1]MonsterGroup!E714 -> 关卡-简单-9章-关卡12 | B173: 51172 | C173: 1 | D173: 10912151 | E173: 10912152 | F173: 10912153 | G173: 10912154 | H173: 10912155 | M173: 10912151#10912152#10912153#10912154#10912155
A174: =[1]MonsterGroup!E715 -> 关卡-简单-9章-关卡13 | B174: 51173 | C174: 1 | D174: 10913151 | E174: 10913152 | F174: 10913153 | G174: 10913154 | H174: 10913155 | M174: 10913151#10913152#10913153#10913154#10913155
A175: =[1]MonsterGroup!E716 -> 关卡-简单-9章-关卡14 | B175: 51174 | C175: 1 | D175: 10914151 | E175: 10914152 | F175: 10914153 | G175: 10914154 | H175: 10914155 | M175: 10914151#10914152#10914153#10914154#10914155
A176: =[1]MonsterGroup!E717 -> 关卡-简单-9章-关卡15 | B176: 51175 | C176: 1 | D176: 10915151 | E176: 10915152 | F176: 10915153 | G176: 10915154 | H176: 10915155 | M176: 10915151#10915152#10915153#10915154#10915155
A177: =[1]MonsterGroup!E718 -> 关卡-简单-9章-关卡16 | B177: 51176 | C177: 1 | D177: 10916151 | E177: 10916152 | F177: 10916153 | G177: 10916154 | H177: 10916155 | M177: 10916151#10916152#10916153#10916154#10916155
A178: =[1]MonsterGroup!E719 -> 关卡-简单-9章-关卡17 | B178: 51177 | C178: 1 | D178: 10917151 | E178: 10917152 | F178: 10917153 | G178: 10917154 | H178: 10917155 | M178: 10917151#10917152#10917153#10917154#10917155
A179: =[1]MonsterGroup!E720 -> 关卡-简单-9章-关卡18 | B179: 51178 | C179: 1 | D179: 10918151 | E179: 10918152 | F179: 10918153 | G179: 10918154 | H179: 10918155 | M179: 10918151#10918152#10918153#10918154#10918155
A180: =[1]MonsterGroup!E721 -> 关卡-简单-9章-关卡19 | B180: 51179 | C180: 1 | D180: 10919151 | E180: 10919152 | F180: 10919153 | G180: 10919154 | H180: 10919155 | M180: 10919151#10919152#10919153#10919154#10919155
A181: =[1]MonsterGroup!E722 -> 关卡-简单-9章-关卡20 | B181: 51180 | C181: 1 | D181: 10920151 | M181: 10920151
A182: =[1]MonsterGroup!E723 -> 关卡-简单-10章-关卡1 | B182: 51181 | C182: 1 | D182: 11001151 | E182: 11001152 | F182: 11001153 | G182: 11001154 | H182: 11001155 | M182: 11001151#11001152#11001153#11001154#11001155
A183: =[1]MonsterGroup!E724 -> 关卡-简单-10章-关卡2 | B183: 51182 | C183: 1 | D183: 11002151 | E183: 11002152 | F183: 11002153 | G183: 11002154 | H183: 11002155 | I183: =IF(I178="","",I178+10000) ->  | M183: 11002151#11002152#11002153#11002154#11002155
A184: =[1]MonsterGroup!E725 -> 关卡-简单-10章-关卡3 | B184: 51183 | C184: 1 | D184: 11003151 | E184: 11003152 | F184: 11003153 | G184: 11003154 | H184: 11003155 | M184: 11003151#11003152#11003153#11003154#11003155
A185: =[1]MonsterGroup!E726 -> 关卡-简单-10章-关卡4 | B185: 51184 | C185: 1 | D185: 11004151 | E185: 11004152 | F185: 11004153 | G185: 11004154 | H185: 11004155 | M185: 11004151#11004152#11004153#11004154#11004155
A186: =[1]MonsterGroup!E727 -> 关卡-简单-10章-关卡5 | B186: 51185 | C186: 1 | D186: =IF(D166="","",D166+100000) -> 11005151 | E186: 11005152 | F186: 11005153 | G186: 11005154 | H186: 11005155 | M186: 11005151#11005152#11005153#11005154#11005155
A187: =[1]MonsterGroup!E728 -> 关卡-简单-10章-关卡6 | B187: 51186 | C187: 1 | D187: 11006151 | E187: 11006152 | F187: 11006153 | G187: 11006154 | H187: 11006155 | M187: 11006151#11006152#11006153#11006154#11006155
A188: =[1]MonsterGroup!E729 -> 关卡-简单-10章-关卡7 | B188: 51187 | C188: 1 | D188: 11007151 | E188: 11007152 | F188: 11007153 | G188: 11007154 | H188: 11007155 | M188: 11007151#11007152#11007153#11007154#11007155
A189: =[1]MonsterGroup!E730 -> 关卡-简单-10章-关卡8 | B189: 51188 | C189: 1 | D189: 11008151 | E189: 11008152 | F189: 11008153 | G189: 11008154 | H189: 11008155 | M189: 11008151#11008152#11008153#11008154#11008155
A190: =[1]MonsterGroup!E731 -> 关卡-简单-10章-关卡9 | B190: 51189 | C190: 1 | D190: 11009151 | E190: 11009152 | F190: 11009153 | G190: 11009154 | H190: 11009155 | M190: 11009151#11009152#11009153#11009154#11009155
A191: =[1]MonsterGroup!E732 -> 关卡-简单-10章-关卡10 | B191: 51190 | C191: 1 | D191: 11010151 | M191: 11010151
A192: =[1]MonsterGroup!E733 -> 关卡-简单-10章-关卡11 | B192: 51191 | C192: 1 | D192: 11011151 | E192: 11011152 | F192: 11011153 | G192: 11011154 | H192: 11011155 | M192: 11011151#11011152#11011153#11011154#11011155
A193: =[1]MonsterGroup!E734 -> 关卡-简单-10章-关卡12 | B193: 51192 | C193: 1 | D193: 11012151 | E193: 11012152 | F193: 11012153 | G193: 11012154 | H193: 11012155 | M193: 11012151#11012152#11012153#11012154#11012155
A194: =[1]MonsterGroup!E735 -> 关卡-简单-10章-关卡13 | B194: 51193 | C194: 1 | D194: 11013151 | E194: 11013152 | F194: 11013153 | G194: 11013154 | H194: 11013155 | M194: 11013151#11013152#11013153#11013154#11013155
A195: =[1]MonsterGroup!E736 -> 关卡-简单-10章-关卡14 | B195: 51194 | C195: 1 | D195: 11014151 | E195: 11014152 | F195: 11014153 | G195: 11014154 | H195: 11014155 | M195: =D195&IF(E195="",E195,"#"&E195)&IF(F195="",F195,"#"&F195)&IF(G195="",G195,"#"&G195)&IF(H195="",H195,"#"&H195) -> 11014151#11014152#11014153#11014154#11014155
A196: =[1]MonsterGroup!E737 -> 关卡-简单-10章-关卡15 | B196: 51195 | C196: 1 | D196: 11015151 | E196: 11015152 | F196: 11015153 | G196: 11015154 | H196: 11015155 | M196: 11015151#11015152#11015153#11015154#11015155
A197: =[1]MonsterGroup!E738 -> 关卡-简单-10章-关卡16 | B197: 51196 | C197: 1 | D197: 11016151 | E197: 11016152 | F197: 11016153 | G197: 11016154 | H197: 11016155 | M197: 11016151#11016152#11016153#11016154#11016155
A198: =[1]MonsterGroup!E739 -> 关卡-简单-10章-关卡17 | B198: 51197 | C198: 1 | D198: 11017151 | E198: 11017152 | F198: 11017153 | G198: 11017154 | H198: 11017155 | M198: 11017151#11017152#11017153#11017154#11017155
A199: =[1]MonsterGroup!E740 -> 关卡-简单-10章-关卡18 | B199: 51198 | C199: 1 | D199: 11018151 | E199: 11018152 | F199: 11018153 | G199: 11018154 | H199: 11018155 | I199: =IF(I194="","",I194+10000) ->  | M199: 11018151#11018152#11018153#11018154#11018155
A200: =[1]MonsterGroup!E741 -> 关卡-简单-10章-关卡19 | B200: 51199 | C200: 1 | D200: 11019151 | E200: 11019152 | F200: 11019153 | G200: 11019154 | H200: 11019155 | M200: 11019151#11019152#11019153#11019154#11019155
... 1151 more rows

Sheet 精英本怪物难度设计
B1: 第1波 | C1: 第2波 | D1: 第3波 | F1: 是否是节点boss
A2: 201007 | B2: 100002#100001#100003 | C2: 100004#100001#100003 | E2: 英雄本1boss1 | F2: 0
A3: 201008 | B3: 100002#100001#100003 | C3: 100004#100001#100003 | D3: 100005 | E3: 英雄本1boss2 | F3: 1
A4: 202007 | B4: 100007#100006#100008 | C4: 100009#100006#100008 | E4: 英雄本2boss1 | F4: 0
A5: 202008 | B5: 100007#100006#100008 | C5: 100011#100010#100012 | D5: 100013 | E5: 英雄本2boss2 | F5: 1
A6: 203007 | B6: 100015#100014#100016 | C6: 100018#100014#100015#100016#100017 | E6: 英雄本3boss1 | F6: 0
A7: 203008 | B7: 100018#100014#100015#100016#100017 | C7: 100019 | E7: 英雄本3boss2 | F7: 0
A8: 203009 | B8: 100015#100014#100016 | C8: 100018#100014#100015#100016#100017 | D8: 100020 | E8: 英雄本3boss3 | F8: 1
A9: 204007 | B9: 100022#100021#100023 | C9: 100024 | E9: 英雄本4boss1 | F9: 0
A10: 204008 | B10: 100022#100021#100023 | C10: 100025 | E10: 英雄本4boss2 | F10: 0
A11: 204009 | B11: 100022#100021#100023 | C11: 100025 | D11: 100026 | E11: 英雄本4boss3 | F11: 1
A12: 205007 | B12: 100028#100027#100029 | C12: 100030 | E12: 英雄本5boss1 | F12: 0
A13: 205008 | B13: 100030#100031 | C13: 100032#100030#100031 | E13: 英雄本5boss2 | F13: 0
A14: 205009 | B14: 100032#100030#100031 | C14: 100032#100030#100031 | D14: 100033 | E14: 英雄本5boss3 | F14: 0
A15: 205010 | B15: 100032#100030#100031 | C15: 100033 | D15: 100034 | E15: 英雄本5boss4 | F15: 1
A16: 206007 | B16: 100032#100030#100031 | C16: 100033 | E16: 英雄本6boss1 | F16: 0
A17: 206008 | B17: 100039#100041 | C17: 100040#100039#100041 | E17: 英雄本6boss2 | F17: 0
A18: 206009 | B18: 100039#100041 | C18: 100040#100039#100041 | D18: 100042#100039#100041 | E18: 英雄本6boss3 | F18: 1
A19: 207007 | B19: 100044#100043#100045 | C19: 100046#100043#100045 | E19: 英雄本7boss1 | F19: 0
A20: 207008 | B20: 100049#100048#100050 | C20: 100051 | E20: 英雄本7boss2 | F20: 0
A21: 207009 | B21: 100049#100048#100050 | C21: 100046#100048#100050 | D21: 100051 | E21: 英雄本7boss3 | F21: 0
A22: 207010 | B22: 100046#100047 | C22: 100051 | D22: 100052 | E22: 英雄本7boss4 | F22: 1
A23: 208007 | B23: 100054#100053#100055 | C23: 100057#100054#100055#100053#100056 | E23: 英雄本8boss1 | F23: 0
A24: 208008 | B24: 100054#100053#100055 | C24: 100057#100054#100055#100053#100056 | D24: 100058 | E24: 英雄本8boss2 | F24: 1
A25: 209007 | B25: 100059 | C25: 100060 | E25: 英雄本9boss1 | F25: 0
A26: 209008 | B26: 100060#100061 | C26: 100062#100060#100061 | E26: 英雄本9boss2 | F26: 0
A27: 209009 | B27: 100062#100060#100061 | C27: 100063#100064 | E27: 英雄本9boss3 | F27: 1
A28: 210007 | B28: 100065#100066#100067 | C28: 100069#100066#100068#100065#100067 | E28: 英雄本10boss1 | F28: 0
A29: 210008 | B29: 100069#100066#100067 | C29: 100071#100070#100072 | E29: 英雄本10boss2 | F29: 0
A30: 210009 | B30: 100071#100070#100072 | C30: 100073#100074 | D30: 100075#100073#100074 | E30: 英雄本10boss3 | F30: 0
A31: 210010 | B31: 100073#100074 | C31: 100075#100073#100074 | D31: 100076 | E31: 英雄本10boss4 | F31: 1
A32: 211007 | B32: 100078#100077#100079 | C32: 100080 | E32: 英雄本11boss1 | F32: 0
A33: 211008 | B33: 100081 | C33: 100083 | E33: 英雄本11boss2 | F33: 0
A34: 211009 | B34: 100082 | C34: 100083 | D34: 100084 | E34: 英雄本11boss3 | F34: 1
A35: 212007 | B35: 100086#100085 | C35: 100086#100087#100085#100088 | E35: 英雄本12boss1 | F35: 0
A36: 212008 | B36: 100086#100087#100088 | C36: 100089 | E36: 英雄本12boss2 | F36: 0
A37: 212009 | B37: 100086#100087#100088 | C37: 100089 | D37: 100090 | E37: 英雄本12boss3 | F37: 1
A38: 213007 | B38: 100092#100091#100093 | C38: 100094 | E38: 英雄本13boss1 | F38: 0
A39: 213008 | B39: 100092#100091#100093 | C39: 100094 | D39: 100095 | E39: 英雄本13boss2 | F39: 1
A40: 214007 | B40: 100096 | E40: 英雄本14boss1 | F40: 0
A41: 214008 | B41: 100097 | E41: 英雄本14boss2 | F41: 0
A42: 214009 | B42: 100098 | E42: 英雄本14boss3 | F42: 0
A43: 214010 | B43: 100099 | E43: 英雄本14boss4 | F43: 1
A44: 215007 | B44: 100101#100100#100102 | C44: 100103#100100#100102 | E44: 英雄本15boss1 | F44: 0
A45: 215008 | B45: 100105#100104#100106 | C45: 100107#100104#100106 | E45: 英雄本15boss2 | F45: 0
A46: 215009 | B46: 100103#100100#100102 | C46: 100107#100104#100106 | D46: 100108 | E46: 英雄本15boss3 | F46: 1

Sheet 爬塔怪物辅助表
A1: 普通 | B1: 1 | C1: 2 | D1: 3 | E1: 4 | F1: 5 | K1: 精英 | S1: BOSS | AA1: 福利怪
B2: 2010001 | C2: =B2+10000 -> 2020001 | D2: 2030001 | E2: 2040001 | F2: 2050001 | G2: =_xlfn.TEXTJOIN("#",TRUE,B2:D2) ->  | H2: =_xlfn.TEXTJOIN("#",TRUE,E2:F2) ->  | I2: =_xlfn.TEXTJOIN("|",TRUE,G2,H2) ->  | K2: =B2+1000000 -> 3010001 | L2: =C2+1000000 -> 3020001 | M2: =D2+1000000 -> 3030001 | N2: =_xlfn.TEXTJOIN("#",TRUE,K2:M2) ->  | S2: 4010001 | T2: 10021 | U2: =T2-T2+S2+10000 -> 4020001 | V2: 10005 | W2: =V2-V2+U2+10000 -> 4030001 | X2: =IFERROR(_xlfn.TEXTJOIN("#",TRUE,S2,U2,W2),IFERROR(_xlfn.TEXTJOIN("#",TRUE,S2,U2),_xlfn.TEXTJOIN("#",TRUE,S2))) ->  | AA2: =S2+1000000 -> 5010001 | AB2: =AA2+10000 -> 5020001 | AC2: =AB2+10000 -> 5030001 | AD2: =_xlfn.TEXTJOIN("#",TRUE,AA2:AC2) -> 
B3: =B2+1 -> 2010002 | C3: 2020002 | D3: 2030002 | E3: 2040002 | F3: 2050002 | G3: =_xlfn.TEXTJOIN("#",TRUE,B3:D3) ->  | H3: =_xlfn.TEXTJOIN("#",TRUE,E3:F3) ->  | I3: =_xlfn.TEXTJOIN("|",TRUE,G3,H3) ->  | K3: =B3+1000000 -> 3010002 | L3: =C3+1000000 -> 3020002 | M3: =D3+1000000 -> 3030002 | N3: =_xlfn.TEXTJOIN("#",TRUE,K3:M3) ->  | S3: 4010002 | T3: 10001 | U3: =T3-T3+S3+10000 -> 4020002 | X3: =IFERROR(_xlfn.TEXTJOIN("#",TRUE,S3,U3,W3),IFERROR(_xlfn.TEXTJOIN("#",TRUE,S3,U3),_xlfn.TEXTJOIN("#",TRUE,S3))) ->  | AA3: =AA2+1 -> 5010002 | AB3: =AA3+10000 -> 5020002 | AC3: =AB3+10000 -> 5030002 | AD3: =_xlfn.TEXTJOIN("#",TRUE,AA3:AC3) -> 
B4: =B3+1 -> 2010003 | C4: =B4+10000 -> 2020003 | D4: =C4+10000 -> 2030003 | E4: =D4+10000 -> 2040003 | F4: =E4+10000 -> 2050003 | K4: 3010003 | L4: 3020003 | M4: 3030003 | S4: 4010003 | T4: 10005 | U4: 4020003 | V4: 10018 | W4: 4030003 | AA4: =AA3+1 -> 5010003 | AB4: 5020003 | AC4: 5030003 | AD4: =_xlfn.TEXTJOIN("#",TRUE,AA4:AC4) -> 
B5: 2010004 | C5: 2020004 | D5: 2030004 | E5: 2040004 | F5: 2050004 | K5: 3010004 | L5: 3020004 | M5: 3030004 | S5: 4010004 | T5: 10009 | U5: 4020004 | V5: 10016 | W5: 4030004 | AA5: 5010004 | AB5: 5020004 | AC5: 5030004
B6: 2010005 | C6: 2020005 | D6: 2030005 | E6: 2040005 | F6: 2050005 | K6: 3010005 | L6: 3020005 | M6: 3030005 | S6: 4010005 | AA6: 5010005 | AB6: 5020005 | AC6: 5030005
B7: 2010006 | C7: 2020006 | D7: 2030006 | E7: 2040006 | F7: 2050006 | K7: 3010006 | L7: 3020006 | M7: 3030006 | S7: 4010006 | T7: 10012 | U7: 4020006 | AA7: 5010006 | AB7: 5020006 | AC7: 5030006
B8: 2010007 | C8: 2020007 | D8: 2030007 | E8: 2040007 | F8: 2050007 | K8: 3010007 | L8: 3020007 | M8: 3030007 | S8: 4010007 | T8: 10016 | U8: 4020007 | V8: 10007 | W8: 4030007 | AA8: 5010007 | AB8: 5020007 | AC8: 5030007
B9: 2010008 | C9: 2020008 | D9: 2030008 | E9: 2040008 | F9: 2050008 | K9: 3010008 | L9: 3020008 | M9: 3030008 | S9: 4010008 | T9: 10010 | U9: 4020008 | V9: 10010 | W9: 4030008 | AA9: 5010008 | AB9: 5020008 | AC9: 5030008
B10: 2010009 | C10: 2020009 | D10: 2030009 | E10: 2040009 | F10: 2050009 | K10: 3010009 | L10: 3020009 | M10: 3030009 | S10: 4010009 | T10: 10017 | U10: 4020009 | AA10: 5010009 | AB10: 5020009 | AC10: 5030009
B11: 2010010 | C11: 2020010 | D11: 2030010 | E11: 2040010 | F11: 2050010 | K11: 3010010 | L11: 3020010 | M11: 3030010 | S11: 4010010 | T11: 10012 | U11: 4020010 | V11: 10011 | W11: 4030010 | AA11: 5010010 | AB11: 5020010 | AC11: 5030010
B12: 2010011 | C12: 2020011 | D12: 2030011 | E12: 2040011 | F12: 2050011 | K12: 3010011 | L12: 3020011 | M12: 3030011 | S12: 4010011 | T12: 10021 | U12: 4020011 | V12: 10005 | W12: 4030011 | AA12: 5010011 | AB12: 5020011 | AC12: 5030011
B13: 2010012 | C13: 2020012 | D13: 2030012 | E13: 2040012 | F13: 2050012 | K13: 3010012 | L13: 3020012 | M13: 3030012 | S13: 4010012 | AA13: 5010012 | AB13: 5020012 | AC13: 5030012
B14: 2010013 | C14: 2020013 | D14: 2030013 | E14: 2040013 | F14: 2050013 | K14: 3010013 | L14: 3020013 | M14: 3030013 | S14: 4010013 | AA14: 5010013 | AB14: 5020013 | AC14: 5030013
B15: 2010014 | C15: 2020014 | D15: 2030014 | E15: 2040014 | F15: 2050014 | K15: 3010014 | L15: 3020014 | M15: 3030014 | S15: 4010014 | T15: 10005 | U15: 4020014 | AA15: 5010014 | AB15: 5020014 | AC15: 5030014
B16: 2010015 | C16: 2020015 | D16: 2030015 | E16: 2040015 | F16: 2050015 | K16: 3010015 | L16: 3020015 | M16: 3030015 | S16: 4010015 | T16: 10008 | U16: 4020015 | V16: 10016 | W16: 4030015 | AA16: 5010015 | AB16: 5020015 | AC16: 5030015
B17: 2010016 | C17: 2020016 | D17: 2030016 | E17: 2040016 | F17: 2050016 | K17: 3010016 | L17: 3020016 | M17: 3030016 | S17: 4010016 | T17: 10015 | U17: 4020016 | V17: 10012 | W17: 4030016 | AA17: 5010016 | AB17: 5020016 | AC17: 5030016
B18: 2010017 | C18: 2020017 | D18: 2030017 | E18: 2040017 | F18: 2050017 | K18: 3010017 | L18: 3020017 | M18: 3030017 | S18: 4010017 | T18: 10010 | U18: 4020017 | AA18: 5010017 | AB18: 5020017 | AC18: 5030017
B19: 2010018 | C19: 2020018 | D19: 2030018 | E19: 2040018 | F19: 2050018 | K19: 3010018 | L19: 3020018 | M19: 3030018 | S19: 4010018 | T19: 10019 | U19: 4020018 | V19: 10006 | W19: 4030018 | AA19: 5010018 | AB19: 5020018 | AC19: 5030018
B20: 2010019 | C20: 2020019 | D20: 2030019 | E20: 2040019 | F20: 2050019 | K20: 3010019 | L20: 3020019 | M20: 3030019 | S20: 4010019 | T20: 10014 | U20: 4020019 | AA20: 5010019 | AB20: 5020019 | AC20: 5030019
B21: 2010020 | C21: 2020020 | D21: 2030020 | E21: 2040020 | F21: 2050020 | K21: 3010020 | L21: 3020020 | M21: 3030020 | S21: 4010020 | T21: 10020 | U21: 4020020 | V21: 10005 | W21: 4030020 | AA21: 5010020 | AB21: 5020020 | AC21: 5030020
B22: 2010021 | C22: 2020021 | D22: 2030021 | E22: 2040021 | F22: 2050021 | K22: 3010021 | L22: 3020021 | M22: 3030021 | S22: 4010021 | T22: 10008 | U22: 4020021 | AA22: 5010021 | AB22: 5020021 | AC22: 5030021
B23: 2010022 | C23: 2020022 | D23: 2030022 | E23: 2040022 | F23: 2050022 | K23: 3010022 | L23: 3020022 | M23: 3030022 | S23: 4010022 | T23: 10014 | U23: 4020022 | V23: 10017 | W23: 4030022 | AA23: 5010022 | AB23: 5020022 | AC23: 5030022
B24: 2010023 | C24: 2020023 | D24: 2030023 | E24: 2040023 | F24: 2050023 | K24: 3010023 | L24: 3020023 | M24: 3030023 | S24: 4010023 | T24: 10012 | U24: 4020023 | AA24: 5010023 | AB24: 5020023 | AC24: 5030023
B25: 2010024 | C25: 2020024 | D25: 2030024 | E25: 2040024 | F25: 2050024 | K25: 3010024 | L25: 3020024 | M25: 3030024 | S25: 4010024 | T25: 10003 | U25: 4020024 | AA25: 5010024 | AB25: 5020024 | AC25: 5030024
B26: 2010025 | C26: 2020025 | D26: 2030025 | E26: 2040025 | F26: 2050025 | K26: 3010025 | L26: 3020025 | M26: 3030025 | S26: 4010025 | T26: 10018 | U26: 4020025 | AA26: 5010025 | AB26: 5020025 | AC26: 5030025
B27: 2010026 | C27: 2020026 | D27: 2030026 | E27: 2040026 | F27: 2050026 | K27: 3010026 | L27: 3020026 | M27: 3030026 | S27: 4010026 | T27: 10005 | U27: 4020026 | V27: 10008 | W27: 4030026 | AA27: 5010026 | AB27: 5020026 | AC27: 5030026
B28: 2010027 | C28: 2020027 | D28: 2030027 | E28: 2040027 | F28: 2050027 | K28: 3010027 | L28: 3020027 | M28: 3030027 | S28: 4010027 | AA28: 5010027 | AB28: 5020027 | AC28: 5030027
B29: 2010028 | C29: 2020028 | D29: 2030028 | E29: 2040028 | F29: 2050028 | K29: 3010028 | L29: 3020028 | M29: 3030028 | S29: 4010028 | T29: 10014 | U29: 4020028 | AA29: 5010028 | AB29: 5020028 | AC29: 5030028
B30: 2010029 | C30: 2020029 | D30: 2030029 | E30: 2040029 | F30: 2050029 | K30: 3010029 | L30: 3020029 | M30: 3030029 | S30: 4010029 | T30: 10002 | U30: 4020029 | V30: 10007 | W30: 4030029 | AA30: 5010029 | AB30: 5020029 | AC30: 5030029
B31: 2010030 | C31: 2020030 | D31: 2030030 | E31: 2040030 | F31: 2050030 | K31: 3010030 | L31: 3020030 | M31: 3030030 | S31: 4010030 | T31: 10012 | U31: 4020030 | V31: 10012 | W31: 4030030 | AA31: 5010030 | AB31: 5020030 | AC31: 5030030
B32: 2010031 | C32: 2020031 | D32: 2030031 | E32: 2040031 | F32: 2050031 | K32: 3010031 | L32: 3020031 | M32: 3030031 | S32: 4010031 | T32: 10021 | U32: 4020031 | AA32: 5010031 | AB32: 5020031 | AC32: 5030031
B33: 2010032 | C33: 2020032 | D33: 2030032 | E33: 2040032 | F33: 2050032 | K33: 3010032 | L33: 3020032 | M33: 3030032 | S33: 4010032 | T33: 10015 | U33: 4020032 | AA33: 5010032 | AB33: 5020032 | AC33: 5030032
B34: 2010033 | C34: 2020033 | D34: 2030033 | E34: 2040033 | F34: 2050033 | K34: 3010033 | L34: 3020033 | M34: 3030033 | S34: 4010033 | AA34: 5010033 | AB34: 5020033 | AC34: 5030033
B35: 2010034 | C35: 2020034 | D35: 2030034 | E35: 2040034 | F35: 2050034 | G35: =_xlfn.TEXTJOIN("#",TRUE,B35:D35) ->  | H35: =_xlfn.TEXTJOIN("#",TRUE,E35:F35) ->  | I35: =_xlfn.TEXTJOIN("|",TRUE,G35,H35) ->  | K35: =B35+1000000 -> 3010034 | L35: =C35+1000000 -> 3020034 | M35: =D35+1000000 -> 3030034 | N35: =_xlfn.TEXTJOIN("#",TRUE,K35:M35) ->  | S35: 4010034 | U35: =T35-T35+S35+10000 ->  | X35: =IFERROR(_xlfn.TEXTJOIN("#",TRUE,S35,U35,W35),IFERROR(_xlfn.TEXTJOIN("#",TRUE,S35,U35),_xlfn.TEXTJOIN("#",TRUE,S35))) ->  | AA35: 5010034 | AB35: =AA35+10000 -> 5020034 | AC35: =AB35+10000 -> 5030034
B36: =B35+1 -> 2010035 | C36: =B36+10000 -> 2020035 | D36: =C36+10000 -> 2030035 | E36: =D36+10000 -> 2040035 | F36: =E36+10000 -> 2050035 | K36: 3010035 | L36: 3020035 | M36: 3030035 | S36: 4010035 | T36: 10011 | U36: 4020035 | V36: 10016 | W36: 4030035 | AA36: =AA35+1 -> 5010035 | AB36: 5020035 | AC36: 5030035 | AD36: =_xlfn.TEXTJOIN("#",TRUE,AA36:AC36) -> 
B37: 2010036 | C37: 2020036 | D37: 2030036 | E37: 2040036 | F37: 2050036 | K37: 3010036 | L37: 3020036 | M37: 3030036 | S37: 4010036 | AA37: 5010036 | AB37: 5020036 | AC37: 5030036
B38: 2010037 | C38: 2020037 | D38: 2030037 | E38: 2040037 | F38: 2050037 | K38: 3010037 | L38: 3020037 | M38: 3030037 | S38: 4010037 | AA38: 5010037 | AB38: 5020037 | AC38: 5030037
B39: 2010038 | C39: 2020038 | D39: 2030038 | E39: 2040038 | F39: 2050038 | K39: 3010038 | L39: 3020038 | M39: 3030038 | S39: 4010038 | T39: 10012 | U39: 4020038 | V39: 10003 | W39: 4030038 | AA39: 5010038 | AB39: 5020038 | AC39: 5030038
B40: 2010039 | C40: 2020039 | D40: 2030039 | E40: 2040039 | F40: 2050039 | K40: 3010039 | L40: 3020039 | M40: 3030039 | S40: 4010039 | T40: 10019 | U40: 4020039 | AA40: 5010039 | AB40: 5020039 | AC40: 5030039
B41: 2010040 | C41: 2020040 | D41: 2030040 | E41: 2040040 | F41: 2050040 | K41: 3010040 | L41: 3020040 | M41: 3030040 | S41: 4010040 | T41: 10018 | U41: 4020040 | V41: 10018 | W41: 4030040 | AA41: 5010040 | AB41: 5020040 | AC41: 5030040
B42: 2010041 | C42: 2020041 | D42: 2030041 | E42: 2040041 | F42: 2050041 | K42: 3010041 | L42: 3020041 | M42: 3030041 | S42: 4010041 | T42: 10008 | U42: 4020041 | V42: 10019 | W42: 4030041 | AA42: 5010041 | AB42: 5020041 | AC42: 5030041
B43: 2010042 | C43: 2020042 | D43: 2030042 | E43: 2040042 | F43: 2050042 | K43: 3010042 | L43: 3020042 | M43: 3030042 | S43: 4010042 | T43: 10018 | U43: 4020042 | V43: 10018 | W43: 4030042 | AA43: 5010042 | AB43: 5020042 | AC43: 5030042
B44: 2010043 | C44: 2020043 | D44: 2030043 | E44: 2040043 | F44: 2050043 | K44: 3010043 | L44: 3020043 | M44: 3030043 | S44: 4010043 | T44: 10018 | U44: 4020043 | V44: 10006 | W44: 4030043 | AA44: 5010043 | AB44: 5020043 | AC44: 5030043
B45: 2010044 | C45: 2020044 | D45: 2030044 | E45: 2040044 | F45: 2050044 | K45: 3010044 | L45: 3020044 | M45: 3030044 | S45: 4010044 | T45: 10020 | U45: 4020044 | AA45: 5010044 | AB45: 5020044 | AC45: 5030044
B46: 2010045 | C46: 2020045 | D46: 2030045 | E46: 2040045 | F46: 2050045 | K46: 3010045 | L46: 3020045 | M46: 3030045 | S46: 4010045 | T46: 10004 | U46: 4020045 | V46: 10012 | W46: 4030045 | AA46: 5010045 | AB46: 5020045 | AC46: 5030045
B47: 2010046 | C47: 2020046 | D47: 2030046 | E47: 2040046 | F47: 2050046 | K47: 3010046 | L47: 3020046 | M47: 3030046 | S47: 4010046 | T47: 10020 | U47: 4020046 | V47: 10018 | W47: 4030046 | AA47: 5010046 | AB47: 5020046 | AC47: 5030046
B48: 2010047 | C48: 2020047 | D48: 2030047 | E48: 2040047 | F48: 2050047 | K48: 3010047 | L48: 3020047 | M48: 3030047 | S48: 4010047 | T48: 10014 | U48: 4020047 | AA48: 5010047 | AB48: 5020047 | AC48: 5030047
B49: 2010048 | C49: 2020048 | D49: 2030048 | E49: 2040048 | F49: 2050048 | K49: 3010048 | L49: 3020048 | M49: 3030048 | S49: 4010048 | T49: 10017 | U49: 4020048 | V49: 10019 | W49: 4030048 | AA49: 5010048 | AB49: 5020048 | AC49: 5030048
B50: 2010049 | C50: 2020049 | D50: 2030049 | E50: 2040049 | F50: 2050049 | K50: 3010049 | L50: 3020049 | M50: 3030049 | S50: 4010049 | T50: 10004 | U50: 4020049 | AA50: 5010049 | AB50: 5020049 | AC50: 5030049
B51: 2010050 | C51: 2020050 | D51: 2030050 | E51: 2040050 | F51: 2050050 | K51: 3010050 | L51: 3020050 | M51: 3030050 | S51: 4010050 | T51: 10009 | U51: 4020050 | V51: 10005 | W51: 4030050 | AA51: 5010050 | AB51: 5020050 | AC51: 5030050
B52: 2010051 | C52: 2020051 | D52: 2030051 | E52: 2040051 | F52: 2050051 | K52: 3010051 | L52: 3020051 | M52: 3030051 | S52: 4010051 | T52: 10001 | U52: 4020051 | V52: 10013 | W52: 4030051 | AA52: 5010051 | AB52: 5020051 | AC52: 5030051
B53: 2010052 | C53: 2020052 | D53: 2030052 | E53: 2040052 | F53: 2050052 | K53: 3010052 | L53: 3020052 | M53: 3030052 | S53: 4010052 | AA53: 5010052 | AB53: 5020052 | AC53: 5030052
B54: 2010053 | C54: 2020053 | D54: 2030053 | E54: 2040053 | F54: 2050053 | K54: 3010053 | L54: 3020053 | M54: 3030053 | S54: 4010053 | T54: 10015 | U54: 4020053 | V54: 10015 | W54: 4030053 | AA54: 5010053 | AB54: 5020053 | AC54: 5030053
B55: 2010054 | C55: 2020054 | D55: 2030054 | E55: 2040054 | F55: 2050054 | K55: 3010054 | L55: 3020054 | M55: 3030054 | S55: 4010054 | AA55: 5010054 | AB55: 5020054 | AC55: 5030054
B56: 2010055 | C56: 2020055 | D56: 2030055 | E56: 2040055 | F56: 2050055 | K56: 3010055 | L56: 3020055 | M56: 3030055 | S56: 4010055 | T56: 10013 | U56: 4020055 | AA56: 5010055 | AB56: 5020055 | AC56: 5030055
B57: 2010056 | C57: 2020056 | D57: 2030056 | E57: 2040056 | F57: 2050056 | K57: 3010056 | L57: 3020056 | M57: 3030056 | S57: 4010056 | T57: 10017 | U57: 4020056 | AA57: 5010056 | AB57: 5020056 | AC57: 5030056
B58: 2010057 | C58: 2020057 | D58: 2030057 | E58: 2040057 | F58: 2050057 | K58: 3010057 | L58: 3020057 | M58: 3030057 | S58: 4010057 | T58: 10023 | U58: 4020057 | AA58: 5010057 | AB58: 5020057 | AC58: 5030057
B59: 2010058 | C59: 2020058 | D59: 2030058 | E59: 2040058 | F59: 2050058 | K59: 3010058 | L59: 3020058 | M59: 3030058 | S59: 4010058 | AA59: 5010058 | AB59: 5020058 | AC59: 5030058
B60: 2010059 | C60: 2020059 | D60: 2030059 | E60: 2040059 | F60: 2050059 | K60: 3010059 | L60: 3020059 | M60: 3030059 | S60: 4010059 | T60: 10008 | U60: 4020059 | AA60: 5010059 | AB60: 5020059 | AC60: 5030059
B61: 2010060 | C61: 2020060 | D61: 2030060 | E61: 2040060 | F61: 2050060 | K61: 3010060 | L61: 3020060 | M61: 3030060 | S61: 4010060 | T61: 10016 | U61: 4020060 | V61: 10012 | W61: 4030060 | AA61: 5010060 | AB61: 5020060 | AC61: 5030060
B62: 2010061 | C62: 2020061 | D62: 2030061 | E62: 2040061 | F62: 2050061 | K62: 3010061 | L62: 3020061 | M62: 3030061 | S62: 4010061 | T62: 10004 | U62: 4020061 | V62: 10005 | W62: 4030061 | AA62: 5010061 | AB62: 5020061 | AC62: 5030061
B63: 2010062 | C63: 2020062 | D63: 2030062 | E63: 2040062 | F63: 2050062 | K63: 3010062 | L63: 3020062 | M63: 3030062 | S63: 4010062 | AA63: 5010062 | AB63: 5020062 | AC63: 5030062
B64: 2010063 | C64: 2020063 | D64: 2030063 | E64: 2040063 | F64: 2050063 | K64: 3010063 | L64: 3020063 | M64: 3030063 | S64: 4010063 | T64: 10002 | U64: 4020063 | AA64: 5010063 | AB64: 5020063 | AC64: 5030063
B65: 2010064 | C65: 2020064 | D65: 2030064 | E65: 2040064 | F65: 2050064 | K65: 3010064 | L65: 3020064 | M65: 3030064 | S65: 4010064 | T65: 10013 | U65: 4020064 | AA65: 5010064 | AB65: 5020064 | AC65: 5030064
B66: 2010065 | C66: 2020065 | D66: 2030065 | E66: 2040065 | F66: 2050065 | K66: 3010065 | L66: 3020065 | M66: 3030065 | S66: 4010065 | T66: 10016 | U66: 4020065 | W66: =V66-V66+U66+10000 ->  | AA66: 5010065 | AB66: 5020065 | AC66: 5030065
B67: 2010066 | C67: 2020066 | D67: 2030066 | E67: 2040066 | F67: 2050066 | G67: =_xlfn.TEXTJOIN("#",TRUE,B67:D67) ->  | H67: =_xlfn.TEXTJOIN("#",TRUE,E67:F67) ->  | I67: =_xlfn.TEXTJOIN("|",TRUE,G67,H67) ->  | K67: =B67+1000000 -> 3010066 | L67: =C67+1000000 -> 3020066 | M67: =D67+1000000 -> 3030066 | N67: =_xlfn.TEXTJOIN("#",TRUE,K67:M67) ->  | S67: 4010066 | U67: =T67-T67+S67+10000 ->  | X67: =IFERROR(_xlfn.TEXTJOIN("#",TRUE,S67,U67,W67),IFERROR(_xlfn.TEXTJOIN("#",TRUE,S67,U67),_xlfn.TEXTJOIN("#",TRUE,S67))) ->  | AA67: 5010066 | AB67: =AA67+10000 -> 5020066 | AC67: =AB67+10000 -> 5030066
B68: =B67+1 -> 2010067 | C68: =B68+10000 -> 2020067 | D68: =C68+10000 -> 2030067 | E68: =D68+10000 -> 2040067 | F68: =E68+10000 -> 2050067 | K68: 3010067 | L68: 3020067 | M68: 3030067 | S68: 4010067 | T68: 10008 | U68: 4020067 | AA68: =AA67+1 -> 5010067 | AB68: 5020067 | AC68: 5030067 | AD68: =_xlfn.TEXTJOIN("#",TRUE,AA68:AC68) -> 
B69: 2010068 | C69: 2020068 | D69: 2030068 | E69: 2040068 | F69: 2050068 | K69: 3010068 | L69: 3020068 | M69: 3030068 | S69: 4010068 | T69: 10008 | U69: 4020068 | AA69: 5010068 | AB69: 5020068 | AC69: 5030068
B70: 2010069 | C70: 2020069 | D70: 2030069 | E70: 2040069 | F70: 2050069 | K70: 3010069 | L70: 3020069 | M70: 3030069 | S70: 4010069 | T70: 10010 | U70: 4020069 | AA70: 5010069 | AB70: 5020069 | AC70: 5030069
B71: 2010070 | C71: 2020070 | D71: 2030070 | E71: 2040070 | F71: 2050070 | K71: 3010070 | L71: 3020070 | M71: 3030070 | S71: 4010070 | T71: 10011 | U71: 4020070 | V71: 10015 | W71: 4030070 | AA71: 5010070 | AB71: 5020070 | AC71: 5030070
B72: 2010071 | C72: 2020071 | D72: 2030071 | E72: 2040071 | F72: 2050071 | K72: 3010071 | L72: 3020071 | M72: 3030071 | S72: 4010071 | T72: 10009 | U72: 4020071 | AA72: 5010071 | AB72: 5020071 | AC72: 5030071
B73: 2010072 | C73: 2020072 | D73: 2030072 | E73: 2040072 | F73: 2050072 | K73: 3010072 | L73: 3020072 | M73: 3030072 | S73: 4010072 | T73: 10011 | U73: 4020072 | V73: 10005 | W73: 4030072 | AA73: 5010072 | AB73: 5020072 | AC73: 5030072
B74: 2010073 | C74: 2020073 | D74: 2030073 | E74: 2040073 | F74: 2050073 | K74: 3010073 | L74: 3020073 | M74: 3030073 | S74: 4010073 | AA74: 5010073 | AB74: 5020073 | AC74: 5030073
B75: 2010074 | C75: 2020074 | D75: 2030074 | E75: 2040074 | F75: 2050074 | K75: 3010074 | L75: 3020074 | M75: 3030074 | S75: 4010074 | AA75: 5010074 | AB75: 5020074 | AC75: 5030074
B76: 2010075 | C76: 2020075 | D76: 2030075 | E76: 2040075 | F76: 2050075 | K76: 3010075 | L76: 3020075 | M76: 3030075 | S76: 4010075 | T76: 10022 | U76: 4020075 | V76: 10018 | W76: 4030075 | AA76: 5010075 | AB76: 5020075 | AC76: 5030075
B77: 2010076 | C77: 2020076 | D77: 2030076 | E77: 2040076 | F77: 2050076 | K77: 3010076 | L77: 3020076 | M77: 3030076 | S77: 4010076 | T77: 10011 | U77: 4020076 | V77: 10014 | W77: 4030076 | AA77: 5010076 | AB77: 5020076 | AC77: 5030076
B78: 2010077 | C78: 2020077 | D78: 2030077 | E78: 2040077 | F78: 2050077 | K78: 3010077 | L78: 3020077 | M78: 3030077 | S78: 4010077 | AA78: 5010077 | AB78: 5020077 | AC78: 5030077
B79: 2010078 | C79: 2020078 | D79: 2030078 | E79: 2040078 | F79: 2050078 | K79: 3010078 | L79: 3020078 | M79: 3030078 | S79: 4010078 | AA79: 5010078 | AB79: 5020078 | AC79: 5030078
B80: 2010079 | C80: 2020079 | D80: 2030079 | E80: 2040079 | F80: 2050079 | K80: 3010079 | L80: 3020079 | M80: 3030079 | S80: 4010079 | AA80: 5010079 | AB80: 5020079 | AC80: 5030079
B81: 2010080 | C81: 2020080 | D81: 2030080 | E81: 2040080 | F81: 2050080 | K81: 3010080 | L81: 3020080 | M81: 3030080 | S81: 4010080 | T81: 10018 | U81: 4020080 | V81: 10012 | W81: 4030080 | AA81: 5010080 | AB81: 5020080 | AC81: 5030080
B82: 2010081 | C82: 2020081 | D82: 2030081 | E82: 2040081 | F82: 2050081 | K82: 3010081 | L82: 3020081 | M82: 3030081 | S82: 4010081 | T82: 10017 | U82: 4020081 | V82: 10009 | W82: 4030081 | AA82: 5010081 | AB82: 5020081 | AC82: 5030081
B83: 2010082 | C83: 2020082 | D83: 2030082 | E83: 2040082 | F83: 2050082 | K83: 3010082 | L83: 3020082 | M83: 3030082 | S83: 4010082 | AA83: 5010082 | AB83: 5020082 | AC83: 5030082
B84: 2010083 | C84: 2020083 | D84: 2030083 | E84: 2040083 | F84: 2050083 | K84: 3010083 | L84: 3020083 | M84: 3030083 | S84: 4010083 | T84: 10006 | U84: 4020083 | V84: 10022 | W84: 4030083 | AA84: 5010083 | AB84: 5020083 | AC84: 5030083
B85: 2010084 | C85: 2020084 | D85: 2030084 | E85: 2040084 | F85: 2050084 | K85: 3010084 | L85: 3020084 | M85: 3030084 | S85: 4010084 | T85: 10004 | U85: 4020084 | AA85: 5010084 | AB85: 5020084 | AC85: 5030084
B86: 2010085 | C86: 2020085 | D86: 2030085 | E86: 2040085 | F86: 2050085 | K86: 3010085 | L86: 3020085 | M86: 3030085 | S86: 4010085 | T86: 10017 | U86: 4020085 | V86: 10012 | W86: 4030085 | AA86: 5010085 | AB86: 5020085 | AC86: 5030085
B87: 2010086 | C87: 2020086 | D87: 2030086 | E87: 2040086 | F87: 2050086 | K87: 3010086 | L87: 3020086 | M87: 3030086 | S87: 4010086 | AA87: 5010086 | AB87: 5020086 | AC87: 5030086
B88: 2010087 | C88: 2020087 | D88: 2030087 | E88: 2040087 | F88: 2050087 | K88: 3010087 | L88: 3020087 | M88: 3030087 | S88: 4010087 | T88: 10005 | U88: 4020087 | V88: 10020 | W88: 4030087 | AA88: 5010087 | AB88: 5020087 | AC88: 5030087
B89: 2010088 | C89: 2020088 | D89: 2030088 | E89: 2040088 | F89: 2050088 | K89: 3010088 | L89: 3020088 | M89: 3030088 | S89: 4010088 | T89: 10022 | U89: 4020088 | AA89: 5010088 | AB89: 5020088 | AC89: 5030088
B90: 2010089 | C90: 2020089 | D90: 2030089 | E90: 2040089 | F90: 2050089 | K90: 3010089 | L90: 3020089 | M90: 3030089 | S90: 4010089 | T90: 10001 | U90: 4020089 | AA90: 5010089 | AB90: 5020089 | AC90: 5030089
B91: 2010090 | C91: 2020090 | D91: 2030090 | E91: 2040090 | F91: 2050090 | K91: 3010090 | L91: 3020090 | M91: 3030090 | S91: 4010090 | T91: 10016 | U91: 4020090 | V91: 10022 | W91: 4030090 | AA91: 5010090 | AB91: 5020090 | AC91: 5030090
B92: 2010091 | C92: 2020091 | D92: 2030091 | E92: 2040091 | F92: 2050091 | K92: 3010091 | L92: 3020091 | M92: 3030091 | S92: 4010091 | T92: 10017 | U92: 4020091 | V92: 10002 | W92: 4030091 | AA92: 5010091 | AB92: 5020091 | AC92: 5030091
B93: 2010092 | C93: 2020092 | D93: 2030092 | E93: 2040092 | F93: 2050092 | K93: 3010092 | L93: 3020092 | M93: 3030092 | S93: 4010092 | T93: 10001 | U93: 4020092 | AA93: 5010092 | AB93: 5020092 | AC93: 5030092
B94: 2010093 | C94: 2020093 | D94: 2030093 | E94: 2040093 | F94: 2050093 | K94: 3010093 | L94: 3020093 | M94: 3030093 | S94: 4010093 | AA94: 5010093 | AB94: 5020093 | AC94: 5030093
B95: 2010094 | C95: 2020094 | D95: 2030094 | E95: 2040094 | F95: 2050094 | K95: 3010094 | L95: 3020094 | M95: 3030094 | S95: 4010094 | T95: 10003 | U95: 4020094 | V95: 10009 | W95: 4030094 | AA95: 5010094 | AB95: 5020094 | AC95: 5030094
B96: 2010095 | C96: 2020095 | D96: 2030095 | E96: 2040095 | F96: 2050095 | K96: 3010095 | L96: 3020095 | M96: 3030095 | S96: 4010095 | T96: 10012 | U96: 4020095 | V96: 10013 | W96: 4030095 | AA96: 5010095 | AB96: 5020095 | AC96: 5030095
B97: 2010096 | C97: 2020096 | D97: 2030096 | E97: 2040096 | F97: 2050096 | K97: 3010096 | L97: 3020096 | M97: 3030096 | S97: 4010096 | T97: 10015 | U97: 4020096 | AA97: 5010096 | AB97: 5020096 | AC97: 5030096
B98: 2010097 | C98: 2020097 | D98: 2030097 | E98: 2040097 | F98: 2050097 | K98: 3010097 | L98: 3020097 | M98: 3030097 | S98: 4010097 | T98: 10003 | U98: 4020097 | V98: 10010 | W98: 4030097 | AA98: 5010097 | AB98: 5020097 | AC98: 5030097
B99: 2010098 | C99: 2020098 | D99: 2030098 | E99: 2040098 | F99: 2050098 | I99: =_xlfn.TEXTJOIN("|",TRUE,G99,H99) ->  | K99: 3010098 | L99: 3020098 | M99: 3030098 | S99: 4010098 | U99: =T99-T99+S99+10000 ->  | X99: =IFERROR(_xlfn.TEXTJOIN("#",TRUE,S99,U99,W99),IFERROR(_xlfn.TEXTJOIN("#",TRUE,S99,U99),_xlfn.TEXTJOIN("#",TRUE,S99))) ->  | AA99: 5010098 | AB99: =AA99+10000 -> 5020098 | AC99: 5030098
B100: 2010099 | C100: 2020099 | D100: 2030099 | E100: 2040099 | F100: 2050099 | K100: 3010099 | L100: 3020099 | M100: 3030099 | S100: 4010099 | T100: 10022 | U100: 4020099 | AA100: 5010099 | AB100: 5020099 | AC100: 5030099
B101: 2010100 | C101: 2020100 | D101: 2030100 | E101: 2040100 | F101: 2050100 | K101: 3010100 | L101: 3020100 | M101: 3030100 | S101: 4010100 | T101: 10006 | U101: 4020100 | V101: 10012 | W101: 4030100 | AA101: 5010100 | AB101: 5020100 | AC101: 5030100
B102: =B101+1 -> 2010101 | C102: =B102+10000 -> 2020101 | D102: =C102+10000 -> 2030101 | E102: =D102+10000 -> 2040101 | F102: =E102+10000 -> 2050101 | G102: =_xlfn.TEXTJOIN("#",TRUE,B102:D102) ->  | H102: =_xlfn.TEXTJOIN("#",TRUE,E102:F102) ->  | K102: =B102+1000000 -> 3010101 | L102: =C102+1000000 -> 3020101 | M102: =D102+1000000 -> 3030101 | N102: =_xlfn.TEXTJOIN("#",TRUE,K102:M102) ->  | S102: 4010101 | U102: 4020101 | W102: 4030101 | AA102: =AA101+1 -> 5010101 | AB102: =AA102+10000 -> 5020101 | AC102: =AB102+10000 -> 5030101 | AD102: =_xlfn.TEXTJOIN("#",TRUE,AA102:AC102) -> 
B103: 2010102 | C103: 2020102 | D103: 2030102 | E103: 2040102 | F103: 2050102 | K103: 3010102 | L103: 3020102 | M103: 3030102 | S103: 4010102 | T103: 10008 | U103: 4020102 | W103: 4030102 | AA103: 5010102 | AB103: 5020102 | AC103: 5030102
B104: 2010103 | C104: 2020103 | D104: 2030103 | E104: 2040103 | F104: 2050103 | K104: 3010103 | L104: 3020103 | M104: 3030103 | S104: 4010103 | T104: 10015 | U104: 4020103 | V104: 10015 | W104: 4030103 | AA104: 5010103 | AB104: 5020103 | AC104: 5030103
B105: 2010104 | C105: 2020104 | D105: 2030104 | E105: 2040104 | F105: 2050104 | K105: 3010104 | L105: 3020104 | M105: 3030104 | S105: 4010104 | T105: 10021 | U105: 4020104 | W105: 4030104 | AA105: 5010104 | AB105: 5020104 | AC105: 5030104
B106: 2010105 | C106: 2020105 | D106: 2030105 | E106: 2040105 | F106: 2050105 | K106: 3010105 | L106: 3020105 | M106: 3030105 | S106: 4010105 | T106: 10008 | U106: 4020105 | V106: 10016 | W106: 4030105 | AA106: 5010105 | AB106: 5020105 | AC106: 5030105
B107: 2010106 | C107: 2020106 | D107: 2030106 | E107: 2040106 | F107: 2050106 | K107: 3010106 | L107: 3020106 | M107: 3030106 | S107: 4010106 | U107: 4020106 | W107: 4030106 | AA107: 5010106 | AB107: 5020106 | AC107: 5030106
B108: 2010107 | C108: 2020107 | D108: 2030107 | E108: 2040107 | F108: 2050107 | K108: 3010107 | L108: 3020107 | M108: 3030107 | S108: 4010107 | T108: 10023 | U108: 4020107 | AA108: 5010107 | AB108: 5020107 | AC108: 5030107
B109: 2010108 | C109: 2020108 | D109: 2030108 | E109: 2040108 | F109: 2050108 | K109: 3010108 | L109: 3020108 | M109: 3030108 | S109: 4010108 | T109: 10017 | U109: 4020108 | V109: 10009 | W109: 4030108 | AA109: 5010108 | AB109: 5020108 | AC109: 5030108
B110: 2010109 | C110: 2020109 | D110: 2030109 | E110: 2040109 | F110: 2050109 | K110: 3010109 | L110: 3020109 | M110: 3030109 | S110: 4010109 | T110: 10005 | U110: 4020109 | AA110: 5010109 | AB110: 5020109 | AC110: 5030109
B111: 2010110 | C111: 2020110 | D111: 2030110 | E111: 2040110 | F111: 2050110 | K111: 3010110 | L111: 3020110 | M111: 3030110 | S111: 4010110 | T111: 10004 | U111: 4020110 | V111: 10012 | W111: 4030110 | AA111: 5010110 | AB111: 5020110 | AC111: 5030110
B112: 2010111 | C112: 2020111 | D112: 2030111 | E112: 2040111 | F112: 2050111 | K112: 3010111 | L112: 3020111 | M112: 3030111 | S112: 4010111 | U112: 4020111 | W112: 4030111 | AA112: 5010111 | AB112: 5020111 | AC112: 5030111
B113: 2010112 | C113: 2020112 | D113: 2030112 | E113: 2040112 | F113: 2050112 | K113: 3010112 | L113: 3020112 | M113: 3030112 | S113: 4010112 | T113: 10018 | U113: 4020112 | W113: 4030112 | AA113: 5010112 | AB113: 5020112 | AC113: 5030112
B114: 2010113 | C114: 2020113 | D114: 2030113 | E114: 2040113 | F114: 2050113 | K114: 3010113 | L114: 3020113 | M114: 3030113 | S114: 4010113 | T114: 10018 | U114: 4020113 | V114: 10006 | W114: 4030113 | AA114: 5010113 | AB114: 5020113 | AC114: 5030113
B115: 2010114 | C115: 2020114 | D115: 2030114 | E115: 2040114 | F115: 2050114 | K115: 3010114 | L115: 3020114 | M115: 3030114 | S115: 4010114 | T115: 10020 | U115: 4020114 | AA115: 5010114 | AB115: 5020114 | AC115: 5030114
B116: 2010115 | C116: 2020115 | D116: 2030115 | E116: 2040115 | F116: 2050115 | K116: 3010115 | L116: 3020115 | M116: 3030115 | S116: 4010115 | T116: 10012 | U116: 4020115 | V116: 10012 | W116: 4030115 | AA116: 5010115 | AB116: 5020115 | AC116: 5030115
B117: 2010116 | C117: 2020116 | D117: 2030116 | E117: 2040116 | F117: 2050116 | K117: 3010116 | L117: 3020116 | M117: 3030116 | S117: 4010116 | U117: 4020116 | W117: 4030116 | AA117: 5010116 | AB117: 5020116 | AC117: 5030116
B118: 2010117 | C118: 2020117 | D118: 2030117 | E118: 2040117 | F118: 2050117 | K118: 3010117 | L118: 3020117 | M118: 3030117 | S118: 4010117 | T118: 10013 | U118: 4020117 | AA118: 5010117 | AB118: 5020117 | AC118: 5030117
B119: 2010118 | C119: 2020118 | D119: 2030118 | E119: 2040118 | F119: 2050118 | K119: 3010118 | L119: 3020118 | M119: 3030118 | S119: 4010118 | T119: 10015 | U119: 4020118 | V119: 10015 | W119: 4030118 | AA119: 5010118 | AB119: 5020118 | AC119: 5030118
B120: 2010119 | C120: 2020119 | D120: 2030119 | E120: 2040119 | F120: 2050119 | K120: 3010119 | L120: 3020119 | M120: 3030119 | S120: 4010119 | T120: 10001 | U120: 4020119 | W120: 4030119 | AA120: 5010119 | AB120: 5020119 | AC120: 5030119
B121: 2010120 | C121: 2020120 | D121: 2030120 | E121: 2040120 | F121: 2050120 | K121: 3010120 | L121: 3020120 | M121: 3030120 | S121: 4010120 | T121: 10006 | U121: 4020120 | V121: 10012 | W121: 4030120 | AA121: 5010120 | AB121: 5020120 | AC121: 5030120
B122: 2010121 | C122: 2020121 | D122: 2030121 | E122: 2040121 | F122: 2050121 | K122: 3010121 | L122: 3020121 | M122: 3030121 | S122: 4010121 | U122: 4020121 | W122: 4030121 | AA122: 5010121 | AB122: 5020121 | AC122: 5030121
B123: 2010122 | C123: 2020122 | D123: 2030122 | E123: 2040122 | F123: 2050122 | K123: 3010122 | L123: 3020122 | M123: 3030122 | S123: 4010122 | T123: 10001 | U123: 4020122 | AA123: 5010122 | AB123: 5020122 | AC123: 5030122
B124: 2010123 | C124: 2020123 | D124: 2030123 | E124: 2040123 | F124: 2050123 | K124: 3010123 | L124: 3020123 | M124: 3030123 | S124: 4010123 | T124: 10005 | U124: 4020123 | V124: 10018 | W124: 4030123 | AA124: 5010123 | AB124: 5020123 | AC124: 5030123
B125: 2010124 | C125: 2020124 | D125: 2030124 | E125: 2040124 | F125: 2050124 | K125: 3010124 | L125: 3020124 | M125: 3030124 | S125: 4010124 | T125: 10009 | U125: 4020124 | W125: 4030124 | AA125: 5010124 | AB125: 5020124 | AC125: 5030124
B126: 2010125 | C126: 2020125 | D126: 2030125 | E126: 2040125 | F126: 2050125 | K126: 3010125 | L126: 3020125 | M126: 3030125 | S126: 4010125 | T126: 10008 | U126: 4020125 | V126: 10016 | W126: 4030125 | AA126: 5010125 | AB126: 5020125 | AC126: 5030125
B127: 2010126 | C127: 2020126 | D127: 2030126 | E127: 2040126 | F127: 2050126 | K127: 3010126 | L127: 3020126 | M127: 3030126 | S127: 4010126 | U127: 4020126 | W127: 4030126 | AA127: 5010126 | AB127: 5020126 | AC127: 5030126
B128: 2010127 | C128: 2020127 | D128: 2030127 | E128: 2040127 | F128: 2050127 | K128: 3010127 | L128: 3020127 | M128: 3030127 | S128: 4010127 | T128: 10010 | U128: 4020127 | AA128: 5010127 | AB128: 5020127 | AC128: 5030127
B129: 2010128 | C129: 2020128 | D129: 2030128 | E129: 2040128 | F129: 2050128 | K129: 3010128 | L129: 3020128 | M129: 3030128 | S129: 4010128 | T129: 10019 | U129: 4020128 | V129: 10006 | W129: 4030128 | AA129: 5010128 | AB129: 5020128 | AC129: 5030128
B130: 2010129 | C130: 2020129 | D130: 2030129 | E130: 2040129 | F130: 2050129 | K130: 3010129 | L130: 3020129 | M130: 3030129 | S130: 4010129 | T130: 10014 | U130: 4020129 | W130: =V130-V130+U130+10000 ->  | AA130: 5010129 | AB130: 5020129 | AC130: 5030129
B131: 2010130 | C131: 2020130 | D131: 2030130 | E131: 2040130 | F131: 2050130 | I131: =_xlfn.TEXTJOIN("|",TRUE,G131,H131) ->  | K131: 3010130 | L131: 3020130 | M131: 3030130 | S131: 4010130 | T131: 10009 | U131: =T131-T131+S131+10000 -> 4020130 | W131: 4030130 | X131: =IFERROR(_xlfn.TEXTJOIN("#",TRUE,S131,U131,W131),IFERROR(_xlfn.TEXTJOIN("#",TRUE,S131,U131),_xlfn.TEXTJOIN("#",TRUE,S131))) ->  | AA131: 5010130 | AB131: 5020130 | AC131: 5030130
B132: 2010131 | C132: 2020131 | D132: 2030131 | E132: 2040131 | F132: 2050131 | K132: 3010131 | L132: 3020131 | M132: 3030131 | S132: 4010131 | U132: 4020131 | AA132: 5010131 | AB132: 5020131 | AC132: 5030131
B133: 2010132 | C133: 2020132 | D133: 2030132 | E133: 2040132 | F133: 2050132 | K133: 3010132 | L133: 3020132 | M133: 3030132 | S133: 4010132 | T133: 10016 | U133: 4020132 | W133: 4030132 | AA133: 5010132 | AB133: 5020132 | AC133: 5030132
B134: =B133+1 -> 2010133 | C134: =B134+10000 -> 2020133 | D134: =C134+10000 -> 2030133 | E134: =D134+10000 -> 2040133 | F134: =E134+10000 -> 2050133 | G134: =_xlfn.TEXTJOIN("#",TRUE,B134:D134) ->  | H134: =_xlfn.TEXTJOIN("#",TRUE,E134:F134) ->  | K134: =B134+1000000 -> 3010133 | L134: =C134+1000000 -> 3020133 | M134: =D134+1000000 -> 3030133 | N134: =_xlfn.TEXTJOIN("#",TRUE,K134:M134) ->  | S134: 4010133 | T134: 10010 | U134: 4020133 | V134: 10010 | W134: 4030133 | AA134: =AA133+1 -> 5010133 | AB134: =AA134+10000 -> 5020133 | AC134: =AB134+10000 -> 5030133 | AD134: =_xlfn.TEXTJOIN("#",TRUE,AA134:AC134) -> 
B135: 2010134 | C135: 2020134 | D135: 2030134 | E135: 2040134 | F135: 2050134 | K135: 3010134 | L135: 3020134 | M135: 3030134 | S135: 4010134 | T135: 10017 | U135: 4020134 | AA135: 5010134 | AB135: 5020134 | AC135: 5030134
B136: 2010135 | C136: 2020135 | D136: 2030135 | E136: 2040135 | F136: 2050135 | K136: 3010135 | L136: 3020135 | M136: 3030135 | S136: 4010135 | T136: 10011 | U136: 4020135 | V136: 10012 | W136: 4030135 | AA136: 5010135 | AB136: 5020135 | AC136: 5030135
B137: 2010136 | C137: 2020136 | D137: 2030136 | E137: 2040136 | F137: 2050136 | K137: 3010136 | L137: 3020136 | M137: 3030136 | S137: 4010136 | U137: 4020136 | AA137: 5010136 | AB137: 5020136 | AC137: 5030136
B138: 2010137 | C138: 2020137 | D138: 2030137 | E138: 2040137 | F138: 2050137 | K138: 3010137 | L138: 3020137 | M138: 3030137 | S138: 4010137 | T138: 10023 | U138: 4020137 | AA138: 5010137 | AB138: 5020137 | AC138: 5030137
B139: 2010138 | C139: 2020138 | D139: 2030138 | E139: 2040138 | F139: 2050138 | K139: 3010138 | L139: 3020138 | M139: 3030138 | S139: 4010138 | AA139: 5010138 | AB139: 5020138 | AC139: 5030138
B140: 2010139 | C140: 2020139 | D140: 2030139 | E140: 2040139 | F140: 2050139 | K140: 3010139 | L140: 3020139 | M140: 3030139 | S140: 4010139 | T140: 10008 | U140: 4020139 | AA140: 5010139 | AB140: 5020139 | AC140: 5030139
B141: 2010140 | C141: 2020140 | D141: 2030140 | E141: 2040140 | F141: 2050140 | K141: 3010140 | L141: 3020140 | M141: 3030140 | S141: 4010140 | T141: 10016 | U141: 4020140 | V141: 10006 | W141: 4030140 | AA141: 5010140 | AB141: 5020140 | AC141: 5030140
B142: 2010141 | C142: 2020141 | D142: 2030141 | E142: 2040141 | F142: 2050141 | K142: 3010141 | L142: 3020141 | M142: 3030141 | S142: 4010141 | T142: 10008 | U142: 4020141 | W142: 4030141 | AA142: 5010141 | AB142: 5020141 | AC142: 5030141
B143: 2010142 | C143: 2020142 | D143: 2030142 | E143: 2040142 | F143: 2050142 | K143: 3010142 | L143: 3020142 | M143: 3030142 | S143: 4010142 | T143: 10018 | U143: 4020142 | V143: 10018 | W143: 4030142 | AA143: 5010142 | AB143: 5020142 | AC143: 5030142
B144: 2010143 | C144: 2020143 | D144: 2030143 | E144: 2040143 | F144: 2050143 | K144: 3010143 | L144: 3020143 | M144: 3030143 | S144: 4010143 | U144: 4020143 | W144: 4030143 | AA144: 5010143 | AB144: 5020143 | AC144: 5030143
B145: 2010144 | C145: 2020144 | D145: 2030144 | E145: 2040144 | F145: 2050144 | K145: 3010144 | L145: 3020144 | M145: 3030144 | S145: 4010144 | T145: 10020 | U145: 4020144 | AA145: 5010144 | AB145: 5020144 | AC145: 5030144
B146: 2010145 | C146: 2020145 | D146: 2030145 | E146: 2040145 | F146: 2050145 | K146: 3010145 | L146: 3020145 | M146: 3030145 | S146: 4010145 | T146: 10006 | U146: 4020145 | W146: 4030145 | AA146: 5010145 | AB146: 5020145 | AC146: 5030145
B147: 2010146 | C147: 2020146 | D147: 2030146 | E147: 2040146 | F147: 2050146 | K147: 3010146 | L147: 3020146 | M147: 3030146 | S147: 4010146 | T147: 10017 | U147: 4020146 | V147: 10009 | W147: 4030146 | AA147: 5010146 | AB147: 5020146 | AC147: 5030146
B148: 2010147 | C148: 2020147 | D148: 2030147 | E148: 2040147 | F148: 2050147 | K148: 3010147 | L148: 3020147 | M148: 3030147 | S148: 4010147 | AA148: 5010147 | AB148: 5020147 | AC148: 5030147
B149: 2010148 | C149: 2020148 | D149: 2030148 | E149: 2040148 | F149: 2050148 | K149: 3010148 | L149: 3020148 | M149: 3030148 | S149: 4010148 | T149: 10006 | U149: 4020148 | V149: 10022 | W149: 4030148 | AA149: 5010148 | AB149: 5020148 | AC149: 5030148
B150: 2010149 | C150: 2020149 | D150: 2030149 | E150: 2040149 | F150: 2050149 | K150: 3010149 | L150: 3020149 | M150: 3030149 | S150: 4010149 | T150: 10004 | U150: 4020149 | AA150: 5010149 | AB150: 5020149 | AC150: 5030149
B151: 2010150 | C151: 2020150 | D151: 2030150 | E151: 2040150 | F151: 2050150 | K151: 3010150 | L151: 3020150 | M151: 3030150 | S151: 4010150 | T151: 10018 | U151: 4020150 | V151: 10018 | W151: 4030150 | AA151: 5010150 | AB151: 5020150 | AC151: 5030150
B152: 2010151 | C152: 2020151 | D152: 2030151 | E152: 2040151 | F152: 2050151 | K152: 3010151 | L152: 3020151 | M152: 3030151 | S152: 4010151 | T152: 10009 | U152: 4020151 | AA152: 5010151 | AB152: 5020151 | AC152: 5030151
B153: 2010152 | C153: 2020152 | D153: 2030152 | E153: 2040152 | F153: 2050152 | K153: 3010152 | L153: 3020152 | M153: 3030152 | S153: 4010152 | T153: 10011 | U153: 4020152 | V153: 10005 | W153: 4030152 | AA153: 5010152 | AB153: 5020152 | AC153: 5030152
B154: 2010153 | C154: 2020153 | D154: 2030153 | E154: 2040153 | F154: 2050153 | K154: 3010153 | L154: 3020153 | M154: 3030153 | S154: 4010153 | AA154: 5010153 | AB154: 5020153 | AC154: 5030153
B155: 2010154 | C155: 2020154 | D155: 2030154 | E155: 2040154 | F155: 2050154 | K155: 3010154 | L155: 3020154 | M155: 3030154 | S155: 4010154 | T155: 10015 | U155: 4020154 | AA155: 5010154 | AB155: 5020154 | AC155: 5030154
B156: 2010155 | C156: 2020155 | D156: 2030155 | E156: 2040155 | F156: 2050155 | K156: 3010155 | L156: 3020155 | M156: 3030155 | S156: 4010155 | T156: 10012 | U156: 4020155 | V156: 10012 | W156: 4030155 | AA156: 5010155 | AB156: 5020155 | AC156: 5030155
B157: 2010156 | C157: 2020156 | D157: 2030156 | E157: 2040156 | F157: 2050156 | K157: 3010156 | L157: 3020156 | M157: 3030156 | S157: 4010156 | T157: 0 | U157: 4020156 | V157: 0 | W157: 4030156 | AA157: 5010156 | AB157: 5020156 | AC157: 5030156
B158: 2010157 | C158: 2020157 | D158: 2030157 | E158: 2040157 | F158: 2050157 | K158: 3010157 | L158: 3020157 | M158: 3030157 | S158: 4010157 | T158: 10008 | U158: 4020157 | V158: 0 | W158: 4030157 | AA158: 5010157 | AB158: 5020157 | AC158: 5030157
B159: 2010158 | C159: 2020158 | D159: 2030158 | E159: 2040158 | F159: 2050158 | K159: 3010158 | L159: 3020158 | M159: 3030158 | S159: 4010158 | T159: 10015 | U159: 4020158 | V159: 10015 | W159: 4030158 | AA159: 5010158 | AB159: 5020158 | AC159: 5030158
B160: 2010159 | C160: 2020159 | D160: 2030159 | E160: 2040159 | F160: 2050159 | K160: 3010159 | L160: 3020159 | M160: 3030159 | S160: 4010159 | T160: 10021 | U160: 4020159 | V160: 0 | W160: 4030159 | AA160: 5010159 | AB160: 5020159 | AC160: 5030159
B161: 2010160 | C161: 2020160 | D161: 2030160 | E161: 2040160 | F161: 2050160 | K161: 3010160 | L161: 3020160 | M161: 3030160 | S161: 4010160 | T161: 10006 | U161: 4020160 | V161: 10006 | W161: 4030160 | AA161: 5010160 | AB161: 5020160 | AC161: 5030160
B162: 2010161 | C162: 2020161 | D162: 2030161 | E162: 2040161 | F162: 2050161 | K162: 3010161 | L162: 3020161 | M162: 3030161 | S162: 4010161 | T162: 0 | U162: 4020161 | V162: 0 | W162: 4030161 | AA162: 5010161 | AB162: 5020161 | AC162: 5030161
B163: 2010162 | C163: 2020162 | D163: 2030162 | E163: 2040162 | F163: 2050162 | I163: =_xlfn.TEXTJOIN("|",TRUE,G163,H163) ->  | K163: 3010162 | L163: 3020162 | M163: 3030162 | S163: 4010162 | T163: 10023 | U163: =T163-T163+S163+10000 -> 4020162 | X163: =IFERROR(_xlfn.TEXTJOIN("#",TRUE,S163,U163,W163),IFERROR(_xlfn.TEXTJOIN("#",TRUE,S163,U163),_xlfn.TEXTJOIN("#",TRUE,S163))) ->  | AA163: 5010162 | AB163: 5020162 | AC163: 5030162
B164: 2010163 | C164: 2020163 | D164: 2030163 | E164: 2040163 | F164: 2050163 | K164: 3010163 | L164: 3020163 | M164: 3030163 | S164: 4010163 | T164: 10017 | U164: 4020163 | V164: 10009 | W164: 4030163 | AA164: 5010163 | AB164: 5020163 | AC164: 5030163
B165: 2010164 | C165: 2020164 | D165: 2030164 | E165: 2040164 | F165: 2050164 | K165: 3010164 | L165: 3020164 | M165: 3030164 | S165: 4010164 | T165: 10005 | U165: 4020164 | AA165: 5010164 | AB165: 5020164 | AC165: 5030164
B166: =B165+1 -> 2010165 | C166: =B166+10000 -> 2020165 | D166: =C166+10000 -> 2030165 | E166: =D166+10000 -> 2040165 | F166: =E166+10000 -> 2050165 | G166: =_xlfn.TEXTJOIN("#",TRUE,B166:D166) ->  | H166: =_xlfn.TEXTJOIN("#",TRUE,E166:F166) ->  | K166: =B166+1000000 -> 3010165 | L166: =C166+1000000 -> 3020165 | M166: =D166+1000000 -> 3030165 | N166: =_xlfn.TEXTJOIN("#",TRUE,K166:M166) ->  | S166: 4010165 | T166: 10009 | U166: 4020165 | V166: 10009 | W166: 4030165 | AA166: =AA165+1 -> 5010165 | AB166: =AA166+10000 -> 5020165 | AC166: =AB166+10000 -> 5030165 | AD166: =_xlfn.TEXTJOIN("#",TRUE,AA166:AC166) -> 
B167: 2010166 | C167: 2020166 | D167: 2030166 | E167: 2040166 | F167: 2050166 | K167: 3010166 | L167: 3020166 | M167: 3030166 | S167: 4010166 | T167: 0 | U167: 4020166 | V167: 0 | W167: 4030166 | AA167: 5010166 | AB167: 5020166 | AC167: 5030166
B168: 2010167 | C168: 2020167 | D168: 2030167 | E168: 2040167 | F168: 2050167 | K168: 3010167 | L168: 3020167 | M168: 3030167 | S168: 4010167 | T168: 10018 | U168: 4020167 | V168: 0 | W168: 4030167 | AA168: 5010167 | AB168: 5020167 | AC168: 5030167
B169: 2010168 | C169: 2020168 | D169: 2030168 | E169: 2040168 | F169: 2050168 | K169: 3010168 | L169: 3020168 | M169: 3030168 | S169: 4010168 | T169: 10018 | U169: 4020168 | V169: 10006 | W169: 4030168 | AA169: 5010168 | AB169: 5020168 | AC169: 5030168
B170: 2010169 | C170: 2020169 | D170: 2030169 | E170: 2040169 | F170: 2050169 | K170: 3010169 | L170: 3020169 | M170: 3030169 | S170: 4010169 | T170: 10020 | U170: 4020169 | AA170: 5010169 | AB170: 5020169 | AC170: 5030169
B171: 2010170 | C171: 2020170 | D171: 2030170 | E171: 2040170 | F171: 2050170 | K171: 3010170 | L171: 3020170 | M171: 3030170 | S171: 4010170 | T171: 10008 | U171: 4020170 | V171: 10016 | W171: 4030170 | AA171: 5010170 | AB171: 5020170 | AC171: 5030170
B172: 2010171 | C172: 2020171 | D172: 2030171 | E172: 2040171 | F172: 2050171 | K172: 3010171 | L172: 3020171 | M172: 3030171 | S172: 4010171 | T172: 0 | U172: 4020171 | V172: 0 | W172: 4030171 | AA172: 5010171 | AB172: 5020171 | AC172: 5030171
B173: 2010172 | C173: 2020172 | D173: 2030172 | E173: 2040172 | F173: 2050172 | K173: 3010172 | L173: 3020172 | M173: 3030172 | S173: 4010172 | T173: 10013 | U173: 4020172 | AA173: 5010172 | AB173: 5020172 | AC173: 5030172
B174: 2010173 | C174: 2020173 | D174: 2030173 | E174: 2040173 | F174: 2050173 | K174: 3010173 | L174: 3020173 | M174: 3030173 | S174: 4010173 | T174: 10015 | U174: 4020173 | V174: 10015 | W174: 4030173 | AA174: 5010173 | AB174: 5020173 | AC174: 5030173
B175: 2010174 | C175: 2020174 | D175: 2030174 | E175: 2040174 | F175: 2050174 | K175: 3010174 | L175: 3020174 | M175: 3030174 | S175: 4010174 | T175: 10001 | U175: 4020174 | V175: 0 | W175: 4030174 | AA175: 5010174 | AB175: 5020174 | AC175: 5030174
B176: 2010175 | C176: 2020175 | D176: 2030175 | E176: 2040175 | F176: 2050175 | K176: 3010175 | L176: 3020175 | M176: 3030175 | S176: 4010175 | T176: 10009 | U176: 4020175 | V176: 10009 | W176: 4030175 | AA176: 5010175 | AB176: 5020175 | AC176: 5030175
B177: 2010176 | C177: 2020176 | D177: 2030176 | E177: 2040176 | F177: 2050176 | K177: 3010176 | L177: 3020176 | M177: 3030176 | S177: 4010176 | T177: 0 | U177: 4020176 | V177: 0 | W177: 4030176 | AA177: 5010176 | AB177: 5020176 | AC177: 5030176
B178: 2010177 | C178: 2020177 | D178: 2030177 | E178: 2040177 | F178: 2050177 | K178: 3010177 | L178: 3020177 | M178: 3030177 | S178: 4010177 | T178: 10001 | U178: 4020177 | AA178: 5010177 | AB178: 5020177 | AC178: 5030177
B179: 2010178 | C179: 2020178 | D179: 2030178 | E179: 2040178 | F179: 2050178 | K179: 3010178 | L179: 3020178 | M179: 3030178 | S179: 4010178 | T179: 10005 | U179: 4020178 | V179: 10018 | W179: 4030178 | AA179: 5010178 | AB179: 5020178 | AC179: 5030178
B180: 2010179 | C180: 2020179 | D180: 2030179 | E180: 2040179 | F180: 2050179 | K180: 3010179 | L180: 3020179 | M180: 3030179 | S180: 4010179 | T180: 10009 | U180: 4020179 | V180: 0 | W180: 4030179 | AA180: 5010179 | AB180: 5020179 | AC180: 5030179
B181: 2010180 | C181: 2020180 | D181: 2030180 | E181: 2040180 | F181: 2050180 | K181: 3010180 | L181: 3020180 | M181: 3030180 | S181: 4010180 | T181: 10018 | U181: 4020180 | V181: 10018 | W181: 4030180 | X181: =IFERROR(_xlfn.TEXTJOIN("#",TRUE,S181,U181,W181),IFERROR(_xlfn.TEXTJOIN("#",TRUE,S181,U181),_xlfn.TEXTJOIN("#",TRUE,S181))) ->  | AA181: 5010180 | AB181: 5020180 | AC181: 5030180
B182: 2010181 | C182: 2020181 | D182: 2030181 | E182: 2040181 | F182: 2050181 | K182: 3010181 | L182: 3020181 | M182: 3030181 | S182: 4010181 | T182: 0 | U182: 4020181 | V182: 0 | W182: 4030181 | AA182: 5010181 | AB182: 5020181 | AC182: 5030181
B183: 2010182 | C183: 2020182 | D183: 2030182 | E183: 2040182 | F183: 2050182 | K183: 3010182 | L183: 3020182 | M183: 3030182 | S183: 4010182 | T183: 10010 | U183: 4020182 | AA183: 5010182 | AB183: 5020182 | AC183: 5030182
B184: 2010183 | C184: 2020183 | D184: 2030183 | E184: 2040183 | F184: 2050183 | K184: 3010183 | L184: 3020183 | M184: 3030183 | S184: 4010183 | T184: 10019 | U184: 4020183 | V184: 10006 | W184: 4030183 | AA184: 5010183 | AB184: 5020183 | AC184: 5030183
B185: 2010184 | C185: 2020184 | D185: 2030184 | E185: 2040184 | F185: 2050184 | K185: 3010184 | L185: 3020184 | M185: 3030184 | S185: 4010184 | T185: 10014 | U185: 4020184 | AA185: 5010184 | AB185: 5020184 | AC185: 5030184
B186: 2010185 | C186: 2020185 | D186: 2030185 | E186: 2040185 | F186: 2050185 | K186: 3010185 | L186: 3020185 | M186: 3030185 | S186: 4010185 | T186: 10012 | U186: 4020185 | V186: 10012 | W186: 4030185 | AA186: 5010185 | AB186: 5020185 | AC186: 5030185
B187: 2010186 | C187: 2020186 | D187: 2030186 | E187: 2040186 | F187: 2050186 | K187: 3010186 | L187: 3020186 | M187: 3030186 | S187: 4010186 | T187: 0 | U187: 4020186 | AA187: 5010186 | AB187: 5020186 | AC187: 5030186
B188: 2010187 | C188: 2020187 | D188: 2030187 | E188: 2040187 | F188: 2050187 | K188: 3010187 | L188: 3020187 | M188: 3030187 | S188: 4010187 | T188: 10016 | U188: 4020187 | V188: 0 | W188: 4030187 | AA188: 5010187 | AB188: 5020187 | AC188: 5030187
B189: 2010188 | C189: 2020188 | D189: 2030188 | E189: 2040188 | F189: 2050188 | K189: 3010188 | L189: 3020188 | M189: 3030188 | S189: 4010188 | T189: 10010 | U189: 4020188 | V189: 10010 | W189: 4030188 | AA189: 5010188 | AB189: 5020188 | AC189: 5030188
B190: 2010189 | C190: 2020189 | D190: 2030189 | E190: 2040189 | F190: 2050189 | K190: 3010189 | L190: 3020189 | M190: 3030189 | S190: 4010189 | T190: 10017 | U190: 4020189 | AA190: 5010189 | AB190: 5020189 | AC190: 5030189
B191: 2010190 | C191: 2020190 | D191: 2030190 | E191: 2040190 | F191: 2050190 | K191: 3010190 | L191: 3020190 | M191: 3030190 | S191: 4010190 | T191: 10006 | U191: 4020190 | V191: 10006 | W191: 4030190 | AA191: 5010190 | AB191: 5020190 | AC191: 5030190
B192: 2010191 | C192: 2020191 | D192: 2030191 | E192: 2040191 | F192: 2050191 | K192: 3010191 | L192: 3020191 | M192: 3030191 | S192: 4010191 | T192: 0 | U192: 4020191 | AA192: 5010191 | AB192: 5020191 | AC192: 5030191
B193: 2010192 | C193: 2020192 | D193: 2030192 | E193: 2040192 | F193: 2050192 | K193: 3010192 | L193: 3020192 | M193: 3030192 | S193: 4010192 | T193: 10023 | U193: 4020192 | AA193: 5010192 | AB193: 5020192 | AC193: 5030192
B194: 2010193 | C194: 2020193 | D194: 2030193 | E194: 2040193 | F194: 2050193 | K194: 3010193 | L194: 3020193 | M194: 3030193 | S194: 4010193 | W194: =V194-V194+U194+10000 ->  | AA194: 5010193 | AB194: 5020193 | AC194: 5030193
B195: 2010194 | C195: 2020194 | D195: 2030194 | E195: 2040194 | F195: 2050194 | I195: =_xlfn.TEXTJOIN("|",TRUE,G195,H195) ->  | K195: 3010194 | L195: 3020194 | M195: 3030194 | S195: 4010194 | T195: 10008 | U195: =T195-T195+S195+10000 -> 4020194 | AA195: 5010194 | AB195: 5020194 | AC195: 5030194
B196: 2010195 | C196: 2020195 | D196: 2030195 | E196: 2040195 | F196: 2050195 | K196: 3010195 | L196: 3020195 | M196: 3030195 | S196: 4010195 | T196: 10006 | U196: 4020195 | V196: 10012 | W196: 4030195 | AA196: 5010195 | AB196: 5020195 | AC196: 5030195
B197: 2010196 | C197: 2020196 | D197: 2030196 | E197: 2040196 | F197: 2050196 | K197: 3010196 | L197: 3020196 | M197: 3030196 | S197: 4010196 | T197: 10008 | U197: 4020196 | V197: 0 | W197: 4030196 | AA197: 5010196 | AB197: 5020196 | AC197: 5030196
B198: 2010197 | C198: =B198+10000 -> 2020197 | D198: 2030197 | E198: 2040197 | F198: 2050197 | K198: =B198+1000000 -> 3010197 | L198: 3020197 | M198: 3030197 | S198: 4010197 | T198: 10018 | U198: 4020197 | V198: 10018 | W198: 4030197 | AA198: 5010197 | AB198: =AA198+10000 -> 5020197 | AC198: 5030197
B199: 2010198 | C199: 2020198 | D199: 2030198 | E199: 2040198 | F199: 2050198 | K199: 3010198 | L199: 3020198 | M199: 3030198 | S199: 4010198 | T199: 0 | U199: 4020198 | V199: 0 | W199: 4030198 | AA199: 5010198 | AB199: 5020198 | AC199: 5030198
B200: 2010199 | C200: 2020199 | D200: 2030199 | E200: 2040199 | F200: 2050199 | K200: 3010199 | L200: 3020199 | M200: 3030199 | S200: 4010199 | T200: 10020 | U200: 4020199 | AA200: 5010199 | AB200: 5020199 | AC200: 5030199
... 1 more rows

Sheet 奖励辅助表
H4: 60101 | I4: 41 | J4: 42 | K4: =_xlfn.TEXTJOIN("#",TRUE,H4:J4) ->  | M4: 82101 | N4: 81101 | O4: =_xlfn.TEXTJOIN("#",TRUE,L4:N4) -> 
H5: =H4+1 -> 60102 | I5: =I4 -> 41 | J5: =J4 -> 42 | K5: =_xlfn.TEXTJOIN("#",TRUE,H5:J5) ->  | M5: =M4+1 -> 82102 | N5: =N4+1 -> 81102 | O5: =_xlfn.TEXTJOIN("#",TRUE,L5:N5) -> 
H6: =H5+1 -> 60103 | I6: =I5 -> 41 | J6: =J5 -> 42 | K6: =_xlfn.TEXTJOIN("#",TRUE,H6:J6) ->  | M6: =M5+1 -> 82103 | N6: =N5+1 -> 81103 | O6: =_xlfn.TEXTJOIN("#",TRUE,L6:N6) -> 
H7: 60104 | I7: 41 | J7: 42 | M7: 82104 | N7: 81104
H8: 60105 | I8: 41 | J8: 42 | M8: 82105 | N8: 81105
H9: 60106 | I9: 41 | J9: 42 | M9: 82106 | N9: 81106
H10: 60107 | I10: 41 | J10: 42 | M10: 82107 | N10: 81107
H11: 60108 | I11: 41 | J11: 42 | M11: 82108 | N11: 81108
H12: 60109 | I12: 41 | J12: 42 | M12: 82109 | N12: 81109
H13: 60110 | I13: 41 | J13: 42 | M13: 82110 | N13: 81110
H14: 60111 | I14: 41 | J14: 42 | M14: 82111 | N14: 81111
H15: 60112 | I15: 41 | J15: 42 | M15: 82112 | N15: 81112
H16: 60113 | I16: 41 | J16: 42 | M16: 82113 | N16: 81113
H17: 60114 | I17: 41 | J17: 42 | M17: 82114 | N17: 81114
H18: 60115 | I18: 41 | J18: 42 | M18: 82115 | N18: 81115
H19: 60116 | I19: 41 | J19: 42 | M19: 82116 | N19: 81116
H20: 60117 | I20: 41 | J20: 42 | M20: 82117 | N20: 81117
H21: 60118 | I21: 41 | J21: 42 | M21: 82118 | N21: 81118
H22: 60119 | I22: 41 | J22: 42 | M22: 82119 | N22: 81119
H23: 60120 | I23: 41 | J23: 42 | M23: 82120 | N23: 81120
H24: 60121 | I24: 41 | J24: 42 | M24: 82121 | N24: 81121
H25: 60122 | I25: 41 | J25: 42 | M25: 82122 | N25: 81122
H26: 60123 | I26: 41 | J26: 42 | M26: 82123 | N26: 81123
H27: 60124 | I27: 41 | J27: 42 | M27: 82124 | N27: 81124
H28: 60125 | I28: 41 | J28: 42 | M28: 82125 | N28: 81125
H29: 60126 | I29: 41 | J29: 42 | M29: 82126 | N29: 81126
H30: 60127 | I30: 41 | J30: 42 | M30: 82127 | N30: 81127
H31: 60128 | I31: 41 | J31: 42 | M31: 82128 | N31: 81128
H32: 60129 | I32: 41 | J32: 42 | M32: 82129 | N32: 81129
H33: 60130 | I33: 41 | J33: 42 | M33: 82130 | N33: 81130
H34: 60131 | I34: 41 | J34: 42 | M34: 82131 | N34: 81131
H35: 60132 | I35: 41 | J35: 42 | M35: 82132 | N35: 81132
H36: 60133 | I36: 41 | J36: 42 | M36: 82133 | N36: 81133
H37: 60134 | I37: 41 | J37: 42 | M37: 82134 | N37: 81134
H38: =H37+1 -> 60135 | I38: =I37 -> 41 | J38: =J37 -> 42 | K38: =_xlfn.TEXTJOIN("#",TRUE,H38:J38) ->  | M38: =M37+1 -> 82135 | N38: =N37+1 -> 81135 | O38: =_xlfn.TEXTJOIN("#",TRUE,L38:N38) -> 
H39: 60136 | I39: 41 | J39: 42 | M39: 82136 | N39: 81136
H40: 60137 | I40: 41 | J40: 42 | M40: 82137 | N40: 81137
H41: 60138 | I41: 41 | J41: 42 | M41: 82138 | N41: 81138
H42: 60139 | I42: 41 | J42: 42 | M42: 82139 | N42: 81139
H43: 60140 | I43: 41 | J43: 42 | M43: 82140 | N43: 81140
H44: 60141 | I44: 41 | J44: 42 | M44: 82141 | N44: 81141
H45: 60142 | I45: 41 | J45: 42 | M45: 82142 | N45: 81142
H46: 60143 | I46: 41 | J46: 42 | M46: 82143 | N46: 81143
H47: 60144 | I47: 41 | J47: 42 | M47: 82144 | N47: 81144
H48: 60145 | I48: 41 | J48: 42 | M48: 82145 | N48: 81145
H49: 60146 | I49: 41 | J49: 42 | M49: 82146 | N49: 81146
H50: 60147 | I50: 41 | J50: 42 | M50: 82147 | N50: 81147
H51: 60148 | I51: 41 | J51: 42 | M51: 82148 | N51: 81148
H52: 60149 | I52: 41 | J52: 42 | M52: 82149 | N52: 81149
H53: 60150 | I53: 41 | J53: 42 | M53: 82150 | N53: 81150
H54: 60151 | I54: 41 | J54: 42 | M54: 82151 | N54: 81151
H55: 60152 | I55: 41 | J55: 42 | M55: 82152 | N55: 81152
H56: 60153 | I56: 41 | J56: 42 | M56: 82153 | N56: 81153
H57: 60154 | I57: 41 | J57: 42 | M57: 82154 | N57: 81154
H58: 60155 | I58: 41 | J58: 42 | M58: 82155 | N58: 81155
H59: 60156 | I59: 41 | J59: 42 | M59: 82156 | N59: 81156
H60: 60157 | I60: 41 | J60: 42 | M60: 82157 | N60: 81157
H61: 60158 | I61: 41 | J61: 42 | M61: 82158 | N61: 81158
H62: 60159 | I62: 41 | J62: 42 | M62: 82159 | N62: 81159
H63: 60160 | I63: 41 | J63: 42 | M63: 82160 | N63: 81160
H64: 60161 | I64: 41 | J64: 42 | M64: 82161 | N64: 81161
H65: 60162 | I65: 41 | J65: 42 | M65: 82162 | N65: 81162
H66: 60163 | I66: 41 | J66: 42 | M66: 82163 | N66: 81163
H67: 60164 | I67: 41 | J67: 42 | M67: 82164 | N67: 81164
H68: 60165 | I68: 41 | J68: 42 | M68: 82165 | N68: 81165
H69: 60166 | I69: 41 | J69: 42 | M69: 82166 | N69: 81166
H70: =H69+1 -> 60167 | I70: =I69 -> 41 | J70: =J69 -> 42 | K70: =_xlfn.TEXTJOIN("#",TRUE,H70:J70) ->  | M70: =M69+1 -> 82167 | N70: =N69+1 -> 81167 | O70: =_xlfn.TEXTJOIN("#",TRUE,L70:N70) -> 
H71: 60168 | I71: 41 | J71: 42 | M71: 82168 | N71: 81168
H72: 60169 | I72: 41 | J72: 42 | M72: 82169 | N72: 81169
H73: 60170 | I73: 41 | J73: 42 | M73: 82170 | N73: 81170
H74: 60171 | I74: 41 | J74: 42 | M74: 82171 | N74: 81171
H75: 60172 | I75: 41 | J75: 42 | M75: 82172 | N75: 81172
H76: 60173 | I76: 41 | J76: 42 | M76: 82173 | N76: 81173
H77: 60174 | I77: 41 | J77: 42 | M77: 82174 | N77: 81174
H78: 60175 | I78: 41 | J78: 42 | M78: 82175 | N78: 81175
H79: 60176 | I79: 41 | J79: 42 | M79: 82176 | N79: 81176
H80: 60177 | I80: 41 | J80: 42 | M80: 82177 | N80: 81177
H81: 60178 | I81: 41 | J81: 42 | M81: 82178 | N81: 81178
H82: 60179 | I82: 41 | J82: 42 | M82: 82179 | N82: 81179
H83: 60180 | I83: 41 | J83: 42 | M83: 82180 | N83: 81180
H84: 60181 | I84: 41 | J84: 42 | M84: 82181 | N84: 81181
H85: 60182 | I85: 41 | J85: 42 | M85: 82182 | N85: 81182
H86: 60183 | I86: 41 | J86: 42 | M86: 82183 | N86: 81183
H87: 60184 | I87: 41 | J87: 42 | M87: 82184 | N87: 81184
H88: 60185 | I88: 41 | J88: 42 | M88: 82185 | N88: 81185
H89: 60186 | I89: 41 | J89: 42 | M89: 82186 | N89: 81186
H90: 60187 | I90: 41 | J90: 42 | M90: 82187 | N90: 81187
H91: 60188 | I91: 41 | J91: 42 | M91: 82188 | N91: 81188
H92: 60189 | I92: 41 | J92: 42 | M92: 82189 | N92: 81189
H93: 60190 | I93: 41 | J93: 42 | M93: 82190 | N93: 81190
H94: 60191 | I94: 41 | J94: 42 | M94: 82191 | N94: 81191
H95: 60192 | I95: 41 | J95: 42 | M95: 82192 | N95: 81192
H96: 60193 | I96: 41 | J96: 42 | M96: 82193 | N96: 81193
H97: 60194 | I97: 41 | J97: 42 | M97: 82194 | N97: 81194
H98: =H97+1 -> 60195 | I98: =I97 -> 41 | J98: =J97 -> 42 | K98: =_xlfn.TEXTJOIN("#",TRUE,H98:J98) ->  | M98: 82195 | N98: 81195
H99: 60196 | I99: 41 | J99: 42 | M99: 82196 | N99: 81196
H100: 60197 | I100: 41 | J100: 42 | M100: 82197 | N100: 81197
H101: 60198 | I101: 41 | J101: 42 | M101: 82198 | N101: 81198
H102: 60199 | I102: 41 | J102: 42 | M102: 82199 | N102: 81199
H103: 60200 | I103: 41 | J103: 42 | M103: 82200 | N103: 81200

Sheet 副本杂兵精英辅助
C2: 20111 | D2: 20112 | E2: 20113 | F2: 20114 | G2: 20115 | I2: =C2&"#"&D2&"#"&E2&"#"&F2&"#"&G2 -> 20111#20112#20113#20114#20115
C3: =C2+10 -> 20121 | D3: =D2+10 -> 20122 | E3: 20123 | F3: 20124 | G3: 20125 | I3: =C3&"#"&D3&"#"&E3&"#"&F3&"#"&G3 -> 20121#20122#20123#20124#20125
C4: =C2+100 -> 20211 | D4: =D2+100 -> 20212 | E4: 20213 | F4: 20214 | G4: 20215 | I4: 20211#20212#20213#20214#20215
C5: =C3+100 -> 20221 | D5: 20222 | E5: 20223 | F5: 20224 | G5: 20225 | I5: 20221#20222#20223#20224#20225
C6: =C4+100 -> 20311 | D6: 20312 | E6: 20313 | F6: 20314 | G6: 20315 | I6: 20311#20312#20313#20314#20315
C7: =C5+100 -> 20321 | D7: 20322 | E7: 20323 | F7: 20324 | G7: 20325 | I7: 20321#20322#20323#20324#20325
C8: =C6+100 -> 20411 | D8: 20412 | E8: 20413 | F8: 20414 | G8: 20415 | I8: 20411#20412#20413#20414#20415
C9: =C7+100 -> 20421 | D9: 20422 | E9: 20423 | F9: 20424 | G9: 20425 | I9: 20421#20422#20423#20424#20425
C10: =C8+100 -> 20511 | D10: 20512 | E10: 20513 | F10: 20514 | G10: 20515 | I10: 20511#20512#20513#20514#20515
C11: =C9+100 -> 20521 | D11: 20522 | E11: 20523 | F11: 20524 | G11: 20525 | I11: 20521#20522#20523#20524#20525
C12: =C10+100 -> 20611 | D12: 20612 | E12: 20613 | F12: 20614 | G12: 20615 | I12: 20611#20612#20613#20614#20615
C13: =C11+100 -> 20621 | D13: 20622 | E13: 20623 | F13: 20624 | G13: 20625 | I13: 20621#20622#20623#20624#20625
C14: =C12+100 -> 20711 | D14: 20712 | E14: 20713 | F14: 20714 | G14: 20715 | I14: 20711#20712#20713#20714#20715
C15: =C13+100 -> 20721 | D15: 20722 | E15: 20723 | F15: 20724 | G15: 20725 | I15: 20721#20722#20723#20724#20725
C16: =C14+100 -> 20811 | D16: 20812 | E16: 20813 | F16: 20814 | G16: 20815 | I16: 20811#20812#20813#20814#20815
C17: =C15+100 -> 20821 | D17: 20822 | E17: 20823 | F17: 20824 | G17: 20825 | I17: 20821#20822#20823#20824#20825
C18: =C16+100 -> 20911 | D18: 20912 | E18: 20913 | F18: 20914 | G18: 20915 | I18: 20911#20912#20913#20914#20915
C19: =C17+100 -> 20921 | D19: 20922 | E19: 20923 | F19: 20924 | G19: 20925 | I19: 20921#20922#20923#20924#20925
C20: =C18+100 -> 21011 | D20: 21012 | E20: 21013 | F20: 21014 | G20: 21015 | I20: 21011#21012#21013#21014#21015
C21: =C19+100 -> 21021 | D21: 21022 | E21: 21023 | F21: 21024 | G21: 21025 | I21: 21021#21022#21023#21024#21025
C22: =C20+100 -> 21111 | D22: 21112 | E22: 21113 | F22: 21114 | G22: 21115 | I22: 21111#21112#21113#21114#21115
C23: =C21+100 -> 21121 | D23: =D21+100 -> 21122 | E23: 21123 | F23: 21124 | G23: 21125 | I23: 21121#21122#21123#21124#21125
C24: =C22+100 -> 21211 | D24: 21212 | E24: 21213 | F24: 21214 | G24: 21215 | I24: 21211#21212#21213#21214#21215
C25: =C23+100 -> 21221 | D25: 21222 | E25: 21223 | F25: 21224 | G25: 21225 | I25: 21221#21222#21223#21224#21225
C26: =C24+100 -> 21311 | D26: 21312 | E26: 21313 | F26: 21314 | G26: 21315 | I26: 21311#21312#21313#21314#21315
C27: =C25+100 -> 21321 | D27: 21322 | E27: 21323 | F27: 21324 | G27: 21325 | I27: 21321#21322#21323#21324#21325
C28: =C26+100 -> 21411 | D28: 21412 | E28: 21413 | F28: 21414 | G28: 21415 | I28: 21411#21412#21413#21414#21415
C29: =C27+100 -> 21421 | D29: 21422 | E29: 21423 | F29: 21424 | G29: 21425 | I29: 21421#21422#21423#21424#21425
C30: =C28+100 -> 21511 | D30: 21512 | E30: 21513 | F30: 21514 | G30: 21515 | I30: 21511#21512#21513#21514#21515
C31: =C29+100 -> 21521 | D31: 21522 | E31: 21523 | F31: 21524 | G31: 21525 | I31: 21521#21522#21523#21524#21525
C32: =C30+100 -> 21611 | D32: 21612 | E32: 21613 | F32: 21614 | G32: 21615 | I32: 21611#21612#21613#21614#21615
C33: =C31+100 -> 21621 | D33: 21622 | E33: 21623 | F33: 21624 | G33: 21625 | I33: 21621#21622#21623#21624#21625
C34: =C32+100 -> 21711 | D34: 21712 | E34: 21713 | F34: 21714 | G34: 21715 | I34: 21711#21712#21713#21714#21715
C35: =C33+100 -> 21721 | D35: 21722 | E35: 21723 | F35: 21724 | G35: 21725 | I35: 21721#21722#21723#21724#21725
C36: =C34+100 -> 21811 | D36: 21812 | E36: 21813 | F36: 21814 | G36: 21815 | I36: 21811#21812#21813#21814#21815
C37: =C35+100 -> 21821 | D37: 21822 | E37: 21823 | F37: 21824 | G37: 21825 | I37: 21821#21822#21823#21824#21825
C38: =C36+100 -> 21911 | D38: 21912 | E38: 21913 | F38: 21914 | G38: 21915 | I38: 21911#21912#21913#21914#21915
C39: =C37+100 -> 21921 | D39: 21922 | E39: 21923 | F39: 21924 | G39: 21925 | I39: 21921#21922#21923#21924#21925
C40: =C38+100 -> 22011 | D40: 22012 | E40: 22013 | F40: 22014 | G40: 22015 | I40: 22011#22012#22013#22014#22015
C41: =C39+100 -> 22021 | D41: 22022 | E41: 22023 | F41: 22024 | G41: 22025 | I41: 22021#22022#22023#22024#22025
